Workbook

Sheet Naslоvna
A6: PREDMER I PREDRAČUN
B14: Сви ставови предмера подразумевају извођење сваке позиције рада безусловно стручно, прецизно и квалитетно а у свему према: одобреним цртежима, техничком опису и описима у овом предрачуну, важећим техничким прописима, опште техничким условима за извођење грађевинских и грађевинско занатских радова, стандардима и упутствима надзорног органа и пројектанта, уколико у дотичној позицији није другачије условљено.
B15: ОПШТА НАПОМЕНА: Понуђачима је дозвољено да за нуђење сваке позиције могу дати алтернативу која ће одговарати пројектом предвиђен квалитет уз неопходну сагласност Надзора, Инвеститора и Наручиоца .
B18: Напомена: Саставни део овог предмера су ОПШТИ ТЕХНИЧКИ УСЛОВИ ЗА ИЗВОЂЕЊЕ СВИХ ГРАЂЕВИНСКО ЗАНАТСКИХ РАДОВА
B24: 00.00 | C24: ОПШТИ УСЛОВИ
B25: Општи услови за извођење грађевинских и грађевинско занатских радова.
B26: Сви ставови предмера и предрачуна подразумевају извођење сваке позиције рада безусловно стручно, прецизно и квалитетно а у свему према: одобреним цртежима, техничком опису и описима у овом предрачуну, техничким условима и детаљима из елабората за грађевинску физику, статичком прорачуну, детаљима као и накнадним детаљима , важећим техничким прописима, стандардима и упутствима наџорног органа и пројектанта, уколико у дотичној позицији није другачије условљено.
B27: Све одредбе ових општих услова као и наведених општих описа, су саставни делови уговора склопљеног између инвеститора и извођача.
B28: Сви радови и материјали наведени у описима појединих позиција овог предрачуна морају бити обухваћени понуђеним ценама извођача. Уговорене цене су појединачне цене извођача и оне обухватају све издатке за рад, материјал са уобичајеним растуром, спољни и унутрашји транспорт, скелу и оплату за извођење радова (уколико оне за поједине позиције радова нису предвиђене овим предрачуном), воду, осветљење, погонски материјал и енергију за машине, копање и затрпавање кречане, магацине за ускладиштење материјала, привремене градилишне просторије, канцеларије, радничке просторије, режију извођача, друштвене доприносе, све државне и општинске таксе, зараду извођача као и све остале издатке условљене постојећим прописима за формирање продајне цене грађевинског производа, укључујући ту и све издатке који потичу из посебних услова рада које предвиђају норме у грађевинарству, као и услове наведене у претходна два става. Извођач нема право да захтева никакве доплате на понуђене и уговорене цене, изузев ако је изричито наведено у некој позицији да се известан наведен рад плаћа засебно, а није предвиђен у другој позицији.
B29: Обрачун и класификација изведених радова вршиће се према просечним нормама у грађевинарству, што је обавезно и за инвеститора и извођача, уколико у описима појединих позиција предрачуна радова не буде другачије назначено.
B30: Исто тако обавезни су за извођача и сви описи радова из поменутих норми уколико се у опису дотичне позиције рада или у општем опису не предвиђа другачије.
B31: Општи опис дат за једну врсту рада и материјала обавезује извођача да све такве радове у појединим позицијама изведе по том опису, без обзира да ли се у дотичној позицији позива на пшти опис, колико опис рада није у тој позицији другачије наведен.
B32: Код свих грађевинских и грађевинско занатских радова условљава се употреба одговарајуће радне снаге и квалитетног материјала који мора одговарати постојећим техничким прописима, важећим стандардима и описима одговарајућих позиција у предрачуну радова. За сваки материјал који се уграђује, извођач мора претходно поднети надзорном органу атест на увид. У спорним случајевима у погледу Квалитета материјала, узорци ће се достављати Заводу за испитивање материјала, чији су налази меродавни и за инвеститора и за извођача. Ако извођач и поред негативног налаза Завода за испитивање материјала уграђује и даље неквалитетан материјал, инвеститор ће наредити рушење, а сва материјална штета од наредног рушења пада на терет извођача без права рекламације и приговора на рушење које у том смислу доносе инвеститор или грађевинска инспекција.
B33: Сав материјал за који представник инвеститора констатује да не одговара погодбеном предрачуну и прописаном квалитету, извођач је дужан да одмах уклони са градилишта, а инвеститор ће обуставити рад уколико извођач покуша да га употреби. Код свих грађевинских и грађевинско занатских радова условљава се употреба одговарајуће стручне квалификоване радне снаге, како је то за поједине позиције радова предвиђено у просечним нормама у грађевинарству. Извођач је дужан да на захтев инвеститора удаљи са градилишта несавесног и нестручног радника. Пре почетка сваког рада руководилац градилишта је дужана да благовремено затражи од представника инвеститора потребно објашњење планова и обавештења за све радове који нису довољно дефинисани пројектним елаборатом
B34: Ако би извођач, не консултујући инвеститора, поједине радове погрешно извео, или их извео противно добијеном упутству преко грађевинског дневника, односно противно предвиђеном опису, плановима и датим детаљима, неће му се уважити никакво оправдање. У оваквом случају извођач је дужан да без обзира на количину извршеног посла, све освом трошку поруши у уклони, па поново насвој терет да изведе како је предвиђено плановима, описима и детаљима, изузев ако овакве измене не буду преко грађевинског дневника од стране представника инвеститора одобрене. Ако извођач, неки посао, буде извео боље и скупље од предвиђеног квалитета, нема права да захтева доплату, уколико је то на своју руку узвршио, без претходно добијеног одобрења или наређења представника инвеститора, преко грађевинског дневника.
B35: Објекат и цело градилиште извођач мора одржавати уредно и потпуно чисто, а по завршетку радова, пре предаје објекта, све рупе, ЊЦ јаме, рупе од скела и ограда, извођач је дужан да затрпа, набије, поравна, целу површину нивелише и то све добро да се касније не би јављала слегања.
B36: За технички преглед и примопредају, извођач мора цео објекат и градилишну парцелу очистити од шута, вишкова материјала, свих средстава рада и помоћних објеката. Сви прилази објекту, платои, степеништа, стазе, као и подови у свим просторијама морају бити поптпуно чисти као и сва столарија, браварија, стаклене површине и све кровне површине. Коловоз и тротоари оштећени извођењем радова или транспортом, такође се морају довести у исправно стање за технички преглед и примо предају објекта.
B38: Сви наведени завршни радови не плаћају се посебно, јер морају бити обухваћени уговореним ценама. Евентуалну штету, коју би извођач у току извођења радова учинио у кругу градилишта или на суседним зградама, дужан је да отклони и доведе у првобитно стање о свом трошку. Посебно се скреће пажња извођачу да је једино он одговоран за сву штету коју би нанео својим непажљивим и неодговорним радом на суседним, постојећим објектима. Уколико се појави потреба осигурања (подбетониравања и слично) темеља постојећих суседних објеката, такав рад ће инвеститор платити посебно, но једино ће извођач бити одговоран за сву штету уколико он благовремено не предузме све потребне мере за осигурање суседних објеката.
B39: У случају конструктивних измена, као и у случају повећања, смањења или сторнирања појединих радова из предрачуна настале вишкове или мањкове, извођач је обавезан да усвоји без примедби и ограничења, као и без права на одштету, с тим што ће му се било вишак или мањак обрачунати по погодбеним ценама. У случају да наступи потреба за радовима који немају погодбену цену у предрачуну, извођач је дужан да за исте добије одобрење представника инвеститора, утврди за њих цену и све то уведе у грађевински дневник, а према ценовнику свих материјала и радне снаге, који је дужан да приложи уз понуду.
B40: Инвеститор има право да за специјалне радове (изолација крова, нови материјали и друго) захтева од извођача писмену гаранцију да ће изведени радови бити трајни и квалитетни. Извођач је дужан да усклади рад подизвођача који самостално изводе поједине врсте радова, како једни другима не би наносили штету, а уколико би до тога дошло, дужан је да одмах регулише отклањање и накнаду штете, на терет кривца. У противном, трошкове за отклањање оваквих штета, сносиће сам извођач. Ово се односи и на све сметње и штете које би настале због непридржавања договореног редоследа и временског плана извођења појединих радова. Надзорни орган има право да захтева да извођач за нове материјале поднесе на увид узорке на основу којих ће он (надзорни орган) извршити избор. Набавка ових узорака не плаћа се посебно.
B41: Поред свих привремених објеката који су извођачу потребни за извођење радова, извођач је дужан да обезбеди просторију за канцеларију надзорног органа и да је за време градње објекта одржава уредно уз потребно осигурање светла, огрева, чишћења, као и неопходног канцеларијског инвентара. Уколико је извођачу потребно да заузме ради организације градилишта и ускладиштења материјала, поред парцеле још и суседна земљишта и тротоаре, извођач ће за ово коришћење прибавити одобрење од надлежног органа, односно сопственика, с тим да потребне издатке за ово коришћење не може посебно да зарачуна инвеститору. Извођач је дужан да изради елаборат о заштити на раду на градилишту, а према важећем "Правилнику о заштити на раду у грађевинарству".
B42: Извођач је дужан да код техничког прегледа, инвеститору преда све потврде које су законом и прописима предвиђене (о постављењу објекта на регулациону линију, прикључцима на енергетске изворе, водоводну и канализациону мрежу, итд.). Сви издаци око добијања ове документације падају на терет извођача. Извођач је дужан да по завршеном послу поднети инвеститору потврду да је платио утрошену воду, електричну енергију и остале таксе које терете извођача за време извођења радова. Грађевинску књигу и грађевински дневник извођач ће водити на основу постојећих законских прописа, свакодневно уписујући потребне податке, које ће представник инвеститора свакодневно прегледати и оверавати својим потписом на свакој страни. У случају погодбе по принципу "под кључ" извођач је обавезан да изврши претходну контролу количина радова датих у предрачуну.
B43: Саставни део уговора су поред ових општих услова такође и посебни услови инвеститора, постојећа техничка и законска регулатива као и комплетан елаборат техничке документације. Сви радови се морају извести са свим потребним конструктивним деловима потпуно беспреркопрно и по детаљима пројектанта. До предаје објекта инвеститору извођач одговара апсолутно за све на њему и у случају какве штете или квара дужан је о свом трошку све довести у исправно стање. Извођач је дужан да на градилиште постави за цело време изградње висококвалификованог и искусног стручњака који ће одговарати за стручну контролу и тачно извршење свих обавеза извођача.
B44: За све радове у предрачуну где је потребна оплата и скела, извођач је дужан да исте добави и солидно изради, што се засебно не плаћа већ је укалкулисано у понуђену цену одговарајућег рада. Све потребне отворе и жљебове у зидовима и таваницама за спровођење инсталација и разних уређаја дужан је извођач тачно израдити према детаљима и диспозиционим плановима, а после полагања цеви и жљебове зазидати и замалтерисати. Ово се не плаћа посебно већ је обухваћено ценом односних конструкција, зидања и малтерисања. Све обавезе у овим општим условима и општим описима извођач прихвата као саставни део уговора закљученог са инвеститором и обавезује се да их прими без икаквог ограничења и изврши без приговора и рекламације.

Sheet 0_PRIPREMNO_ZAVRSNI
B1: PRIPREMNO ZAVRŠNI RADOVI
A3: redni broj | B3: opis pozicije | C3: jed mer | D3: količina | E3: jedinična cena [RSD] | F3: ukupna cena [RSD]
A4: I | B4: II | C4: III | D4: IV | E4: V | F4: VI
A6: 00-01 | B6: FORMIRANJE GRADILIŠTA Pre početka bilo kojih drugih radova, Izvođač je u obavezi da preduzme sve neophodne pripreme za obezbeđivanje smeštaja, održavanja i uklanjanja potrebnih instalacija i uređaja i snabdevanje električnom energijom (za rad mašina i rasvete). Izvođač će obezbediti sigurnost objekata i imovine i sprečiti neovlašćeni pristup gradilištu, vodeći računa da svi radovi budu u potpunosti u skladu sa projektnom dokumentacijom i ugovorenom dinamikom. U okviru ove pozicije potrebno je izvršiti propisno ograđivanje i obeležavanje lokacije na kojoj se izvode radovi, definisati i obeležiti opasne zone kretanja. Izraditi i postaviti "gradjevinsku" tablu, koja treba da sadrži EU PRO Plus logo (obaveštenje o izvodjenju radova), u skladu sa Pravilnikom o izgledu, sadržini i mestu postavljanja gradjevinske table ("Sl. glasnik RS", br. 97/2023). Detaljan izgled i sadržaj će biti naknadno dostavljen izabranom izvodjaču radova. Obračun paušalno. | C6: pauš. | D6: 1.00 | F6: =D6*E6 -> 0.00
A7: 00-02 | B7: Otvaranje gradilišta, prijava radova nadležnoj inspekciji, izrada elaborata BZR, otvaranje knjige inspekcije i građevinskog dnevnika, upoređivanje projektne dokumentacije sa stvarnim izvedenim stanjem na terenu. | C7: pauš. | D7: 1.00 | F7: 0.00
A8: 00-03 | B8: Spoljni i unutrašnji transport i skladištenje na gradilištu materijala i opreme, razmeravanje i obeležvanje trasa, usklađivanje trasa sa ostalim instalacijama. | C8: pauš. | D8: 1.00 | F8: 0.00
A9: 00-04 | B9: Manji građevinski radovi u vidu bušenja otvora za prolaz cevi, štemovanja zidova za smeštaj ormarića i sl., izrada privremene zaštita izvedenih instalacija i sl. | C9: pauš. | D9: 1.00 | F9: 0.00
A10: 00-05 | B10: Ispitivanja i merenja • Ispitivanje UGI na čvrstoću i nepropusnost • Ispitivanje toplovodne instalacije na hladni hidraulički pritisak • Ispitivanje freonskih instalacija • Topla i hladna proba Predvideti sva potrebna parcijalna ispitivanja, merenja i dokazivanja parametara. Nakon izvršenih merenja i ispitivanja izraditi odgovarajuće zapisnike koje overavaju Odgovorni izvođač radova i Stručni nadzor | C10: pauš. | D10: 1.00 | F10: 0.00
A11: 00-06 | B11: Priprema atestno tehničke dokumentacije, izrada Projekta izvedenog objekta, učestvovanje u tehničkom prijemu. | C11: pauš. | D11: 1.00 | F11: 0.00
A12: 00-07 | B12: POSTAVLJANJE STOJEĆE I ZIDNE PROJEKTNE TABLE Obe table moraju biti dvojezične. Štampano rešenje tabli, izgled i sadržaj će biti naknadno dostavljeni odabranom izvodjaču radova.
B13: Projektna stojeća tabla, sastoje se od glavnog rama, spoljnih dimenzija 1825 x 1625 mm koji se montra i fiksira na dve nogare, ukupne dužine 2730 mm. Detaljan tehnički opis sa grafičkim prilozima koji sadrže sve detalje tačnih dimenzija predmetne table, zahtevane materijale i način spajanja elemenata glavnog rama i njegovu montažu za nogare biće naknadno dostavljeni odabranom izvodjaču radova. Za postavljanje table je nephodno iskopati temeljnu jamu, dimenzija 120 x 120 cm, dubine 75 cm na koji će se postaviti temeljni ram centralno, vodeći računa o horizontalnosti. Detaljno upustvo za izadu temelja (specifikacija materijala koje je neophodno koristiti, vrsta betona, tehničke-grafički prilozi temeljnog rama) i montažu table biće naknadno dostavljeno odabranom izvodjaču radova.
B14: Projektna stojeća tabla treba da bude postavljena na vidljivom mestu - najbližem pešačkoj stazi/putu na lokalitetu na kome su izvedeni radovi izgradnje, u svemu prema naknadnom uputstvu. Tačna lokacija biće definisana na terenu. U slučaju potrebe, obaveza izvođača je obezbedi sve potrebne dozvole za postavljanje na vidljivom mestu.
B15: Projektna zidna tabla spoljnih dimenzija cca 350 x 275 mm od materijala Alubond 4 mm / 0,30 mm, sa direktnom UV štampa u boji biće montirana na vidljivom mestu, bez bušenja, sa 3M GPH 110 VHB, 1,1 mm montažnom trakom ili vrlo sličnih karakteristika, a u svemu prema detalnoj specifikaciji i uputstvu koja će biti dostavljena odabranom izvodjaču radova. Tačna lokacija – položaj projektne zidne table biće definisana na terenu.
B16: Obračun po paru. | C16: par. | D16: 1.00 | F16: =D16*E16 -> 0.00
A17: 00-08 | B17: Zatvaranje gradilišta, čišćenje gradilišta, predaja objekta investitoru, izdavanje garantnih listova. | C17: pauš. | D17: 1.00 | E17: 22.00
A19: UKUPNO PRIPREMNO ZAVRŠNI RADOVI | E19: Ukupno din. | F19: =SUM(F6:F17) -> 0

Sheet I_GRAĐEVINSKI_GZ
A19: RED. BR. | B19: ŠIFRA POZ. | C19: OPIS | D19: J.M. | E19: KOLIČINA | F19: JED. CENA (BEZ PDV-a) | G19: IZNOS (BEZ PDV-a)
A21: I GRAĐEVINSKI I GRAĐEVINSKO-ZANATSKI RADOVI
B23: 01-00 | C23: ZEMLJANI RADOVI
A25: 1 | B25: =B23+1 -> 01-01 | C25: Raščišćavanje terena sa skidanjem šiblja, niskog rastinja i sešenjem stabala prešnika 10cm sa odvozom na deponiju do pet kilometara daljine i obeležavanjem objekta.
C26: Obračun po m2 komplet izvedene pozicije.
D27: m2 | E27: 500.0 | G27: =E27*F27 -> 0
G28: 0
A29: =A25+1 -> 2 | B29: =B25+1 -> 01-02 | C29: Skidanje površinskog sloja terena humusa sa odvozom na deponiju do 500 metara daljine. Teren se skida u sloju od 30 cm, mašinskim putem. | G29: 0
C30: Obračun po m2 komplet izvedene pozicije, mereno u samoniklom stanju. | G30: 0
D31: m3 | E31: 125.0 | G31: 0
G32: 0
A33: =A29+1 -> 3 | B33: =B29+1 -> 01-03 | C33: Iskop zemlje za temeljne trake mašinskim putem, treća kategorija zemljišta. Dubina iskopa oko 140cm.U cenu je uračunat iskop, poravnavanje i čišćenje dna iskopa i stranica sa odbacivanjem materijala. Odvoz materijala se posebno obracunava. | G33: 0
C34: Obračun po m3 izvedene pozicije, mereno u samoniklom stanju.
D35: m3 | E35: 121.0 | G35: =E35*F35 -> 0
G36: =E36*F36 -> 0
A37: =A33+1 -> 4 | B37: =B33+1 -> 01-04 | C37: Nivelisanje dna temeljne jame sa dozvoljenim odstupanjem + 3 cm i sa obradom podtla. | G37: =E37*F37 -> 0
C38: Obračun po m2 komplet izvedene pozicije.
D39: m2 | E39: 80.0 | G39: =E39*F39 -> 0
G40: =E40*F40 -> 0
A41: =A37+1 -> 5 | B41: =B37+1 -> 01-05 | C41: Nasipanje i zbijanje selektiranog drobinskog materijala iz iskopa oko temelja u slojevima od po 20 santimetara sa potrebnim kvašenjem i nabijanjem, (95% po Proktoru, ukoliko geomehaničkim elaboratom nije drugačije određeno). | G41: =E41*F41 -> 0
C42: Obračun po m3 kompet izvedene pozicije.
D43: m3 | E43: 65.0 | G43: =E43*F43 -> 0
G44: =E44*F44 -> 0
A45: =A41+1 -> 6 | B45: =B41+1 -> 01-06 | C45: Nabavka, transport, razastiranje i nabijanje sloja prirodnog šljunka ispod temeljnih traka I podne ploce u sloju d = 15 cm. | G45: =E45*F45 -> 0
C46: Obračun po m3 kompet izvedene pozicije. | G46: =E46*F46 -> 0
D47: m3 | E47: 63.0 | G47: =E47*F47 -> 0
A49: =A45+1 -> 7 | B49: =B45+1 -> 01-07 | C49: Odvoz viška materijala iz iskopa preostalog posle izvršenog nasipanja i nabijanja, kao i materijala nepodesnog za nasipanje. Odvoz se vrši kamionom do 10 kilometara daljine. | G49: =E49*F49 -> 0
C50: Obračun po m3 kompet izvedene pozicije. | G50: =E50*F50 -> 0
D51: m3 | E51: 156.0 | G51: =E51*F51 -> 0
A53: UKUPNO | C53: =C23 -> ZEMLJANI RADOVI | E53: 01-00 | G53: =SUM(G27:G52) -> 0
A55: 02-00 BETONSKI I ARMIRANO BETONSKI RADOVI (GN 400)
B56: 02-00 | C56: BETONSKI I ARMIRANO-BETONSKI RADOVI | G56: =E56*F56 -> 0
G57: =E57*F57 -> 0
A58: =A49+1 -> 8 | B58: =B56+1 -> 02-01 | C58: Betoniranje armirano betonskih temeljnih traka betonom MB-30, sa upotrebom potrebne oplate.
C59: Obračun po m3 komplet izvedene pozicije.
D60: m3 | E60: 37.00 | G60: =E60*F60 -> 0
G61: =E61*F61 -> 0
A62: =A58+1 -> 9 | B62: =B58+1 -> 02-02 | C62: Nabavka materijala, transport i betoniranje armirano betonske cokle d=20cm u glatkoj oplati. Marka betona je MB - 30. | G62: =E62*F62 -> 0
C63: Obračun po m3 komplet izvedene pozicije sa upotrebom oplate. | G63: =E63*F63 -> 0
D64: m3 | E64: 4.00 | G64: =E64*F64 -> 0
A66: =A62+1 -> 10 | B66: =B62+1 -> 02-03 | C66: Nabavka materijala, transport i betoniranje armirano betonskih stubova betonom MB 30 sa upotrebom glatke oplate. | G66: =E66*F66 -> 0
C67: Obračun po m3 komplet izvedene pozicije sa upotrebom oplate. | G67: =E67*F67 -> 0
D68: m3 | E68: 6.00 | G68: =E68*F68 -> 0
A70: =A66+1 -> 11 | B70: =B66+1 -> 02-04 | C70: Nabavka materijala transport i betoniranje armirano betonskih greda betonom MB-30 zajedno sa potrebnom oplatom i podupiranjem. | G70: =E70*F70 -> 0
C71: Obračun po m3 komplet izvedene pozicije. | G71: =E71*F71 -> 0
D72: m3 | E72: 20.00 | G72: =E72*F72 -> 0
A74: =A70+1 -> 12 | B74: =B70+1 -> 02-05 | C74: Betoniranje armiranobetonskih ravnih ploča d=20cm betonom MB-30 u glatkoj oplati, sa podupiranjem. | G74: =E74*F74 -> 0
C75: Obračun po m3 komplet izvedene pozicije. | G75: =E75*F75 -> 0
D76: m3 | E76: 101.00 | G76: =E76*F76 -> 0
A78: =A74+1 -> 13 | B78: =B74+1 -> 02-06 | C78: Betoniranje AB krovnog venca d=20cm, betonom MB-30 u glatkoj oplati. | G78: =E78*F78 -> 0
C79: Obračun po m3 komplet izvedene pozicije. | G79: =E79*F79 -> 0
D80: m3 | E80: 16.00 | G80: =E80*F80 -> 0
A82: =A78+1 -> 14 | B82: =B78+1 -> 02-07 | C82: Betoniranje armirano-betonskih kosih stepenišnih ploča zajedno sa stepenicima betonom MB-30 zajedno sa oplatom i podupiranjem. | G82: =E82*F82 -> 0
C83: Obračun po m3 kompet izvedene pozicije.
D84: m3 | E84: 3.00 | G84: =E84*F84 -> 0
A86: =A82+1 -> 15 | B86: =B82+1 -> 02-08 | C86: Betoniranje armirano-betonske podne ploce betonom MB-30. | G86: =E86*F86 -> 0
C87: Obračun po m3 kompet izvedene pozicije.
D88: m3 | E88: 61.00 | G88: =E88*F88 -> 0
A91: UKUPNO | C91: BETONSKI I ARMIRANO-BETONSKI RADOVI | G91: =SUM(G58:G90) -> 0
B94: 03-00 | C94: ARMIRAČKI RADOVI | G94: =E94*F94 -> 0
G95: =E95*F95 -> 0
A96: =A86+1 -> 16 | B96: =B94+1 -> 03-01 | C96: Nabavka, transport,ispravljanje, sečenje, savijanje i ugradnja armature. Napomena: Količna armature je određena aproksimativno. | G96: =E96*F96 -> 0
C97: Obračun po kilogramu kompet izvedene poz. | G97: =E97*F97 -> 0
C98: Aproksimacija za sve vrste armature
D99: kg | E99: 27,000.00 | G99: =E99*F99 -> 0
A101: UKUPNO | C101: =C94 -> ARMIRAČKI RADOVI | E101: 03-00 | G101: =SUM(G99:G100) -> 0
B104: 04-00 | C104: ZIDARSKI RADOVI | G104: =E104*F104 -> 0
G105: =E105*F105 -> 0
A106: =A96+1 -> 17 | B106: =B104+1 -> 04-01 | C106: Nabavka materijala, transport i zidanje fasadnih i unutrašnjih zidova d = 20 cm šupljim glinenim blokovima MO 150 u produžnom malteru 1:2:6. | G106: =E106*F106 -> 0
C107: Obračun po m3 komplet izvedene pozicije.
D108: m3 | E108: 86.00 | G108: =E108*F108 -> 0.00
A110: =A106+1 -> 18 | B110: =B106+1 -> 04-02 | C110: Zidanje pregradnih d=12 cm punom opekom, MO 150, u produžnom malteru 1:2:6. U visini vrata se radi armirano betonski-serklaž visine 22 cm armiran sa četiri šipke fi 10 mm. Beton je MB 20. | G110: =E110*F110 -> 0.00
C111: Obračun po m2 komplet izvedene pozicije.
D112: m2 | E112: 175.00 | G112: =E112*F112 -> 0.00
A114: =A110+1 -> 19 | B114: =B110+1 -> 04-03 | C114: Malterisanje plafona prod. malterom 1:2:6 u dva sloja, grubo i fino, d = 2.0 cm, sa prethodno prskanom podlogom od retkog cementnog maltera spravljenog od sejanog šljunka. | G114: =E114*F114 -> 0.00
C115: Obračun po m2 komplet izvedene pozicije.
D116: m2 | E116: 248 | G116: =E116*F116 -> 0.00
A118: =A114+1 -> 20 | B118: =B114+1 -> 04-04 | C118: Malterisanje zidova od opeke i glinenih blokova prod. malterom 1:2:6 u dva sloja, d = 2.0 cm, grubo i fino. | G118: =E118*F118 -> 0.00
C119: Obračun po m2 komplet izvedene pozicije.
D120: m2 | E120: 1200 | G120: =E120*F120 -> 0.00
G121: =E121*F121 -> 0.00
A122: =A118+1 -> 21 | B122: =B118+1 -> 04-05 | C122: Izrada cementne košuljice - estriha kao podloge ispod završnog poda. | G122: =E122*F122 -> 0.00
C123: Obračun po m2 komplet izvedene pozicije. | G123: =E123*F123 -> 0.00
D124: m2 | E124: 510.0 | G124: =E124*F124 -> 0.00
A127: UKUPNO | C127: =C104 -> ZIDARSKI RADOVI | E127: 04-00 | G127: =SUM(G107:G125) -> 0
B130: 05-00 | C130: TESARSKI RADOVI | G130: =E130*F130 -> 0
A132: =A122+1 -> 22 | B132: =B130+1 -> 05-01 | C132: Izrada i montaža klasične drvene krovne konstrukcije od čamove građe po dimenzijama iz statičkog proračuna. Drvo je potrebno zaštititi vatrootpornim premazom. Vatrootporni premaz treba da bude vatrootpornosti 45 min., i da bude atestiran u ovlašćenoj domaćoj instituciji. | G132: =E132*F132 -> 0
C133: Obračunava se po m2 komplet izvedene horizontalne projekcije krova.
D134: m2 | E134: 332.0 | G134: =E134*F134 -> 0
A136: =A132+1 -> 23 | B136: =B132+1 -> 05-02 | C136: Izrada daščane oplate od dasaka debljine d=2.4 cm kao podloge ispod krovnih pokrivača.
C137: Obračunava se po m2 izvedene pozicije mereno po kosini.
D138: m2 | E138: 333.0 | G138: =E138*F138 -> 0
A141: UKUPNO | C141: =+C130 -> TESARSKI RADOVI | E141: 05-00 | G141: =SUM(G134:G140) -> 0
B144: 06-00 | C144: KROVOPOKRIVAČKI RADOVI
G145: =E145*F145 -> 0
A146: =A136+1 -> 24 | B146: =B144+1 -> 06-01 | C146: Pokrivanje krovnih površina ravnim pocinkovanim bojenim limom d = 0.6mm koji se postavlja preko daščane podloge i sloja kondora što je posebno obračunato. Cenom obuhvatiti sve opšave po ivicama krova, veze sa olukom i prodore instalacionih cevi. | G146: =E146*F146 -> 0
C147: Obračunava se po m2 pokrivene površine mereno po kosini krova.
D148: m2 | E148: 333.0 | G148: =E148*F148 -> 0
A151: UKUPNO | C151: =C144 -> KROVOPOKRIVAČKI RADOVI | E151: 06-00 | G151: =SUM(G148:G150) -> 0
B154: 07-00 | C154: IZOLATERSKI RADOVI
A156: =A146+1 -> 25 | B156: =B154+1 -> 07-01 | C156: Nabavka i postavljanje horizontalne hidroizolacije AB podne ploče po tehnologiji firme Sika, Švajcarska.
C157: Obračunava se po m2 kompletno gotove hidroizolacije.
D158: m2 | E158: 350.0 | G158: =E158*F158 -> 0
A160: =A156+1 -> 26 | B160: =B156+1 -> 07-02 | C160: Izrada hidroizolacije krova preko daščane podloge(ispod lima kojim se pokriva objekat) Hidroizolacija se izvodi od kondora 3.
C161: Obračun po m2 komplet izvedene pozicije.
D162: m2 | E162: 333.0 | G162: =E162*F162 -> 0
A164: =A160+1 -> 27 | B164: =B160+1 -> 07-03 | C164: Izrada hidroizolacije podova mokrih čvorova. Preko pripremljene i očišćene podloge izvesti hidroizolaciju u sledećim slojevima: - hladan premaz bitulitom A - vruć namaz bitumenom PK-85/25
C165: - bitumenska traka d = min. 4 mm sa uloškom od staklenog voala ili tkanine sa posipom od peska - vruć namaz bitumenom PK-85/25 Hidroizolaciju uzdići uz zidove min. 20 cm što je obuhvaćeno cenom.
C166: Obračunava se po m2 kompletno gotove hidroizolacije.
D167: m2 | E167: 37.0 | G167: =E167*F167 -> 0
A169: =A164+1 -> 28 | B169: =B164+1 -> 07-04 | C169: Izrada termoizolacije podova prizemlja pločama URSA TSP debljine 10cm u svemu prema projektu i detaljima iz projekta
C170: Obračun po m2 kompet izvedene pozicije.
D171: m2 | E171: 300.0 | G171: =E171*F171 -> 0
A173: =A169+1 -> 29 | B173: =B169+1 -> 07-05 | C173: Izrada termoizolacije podova galerije pločama URSA TSP debljine 3cm u svemu prema projektu i detaljima iz projekta
C174: Obračun po m2 kompet izvedene pozicije.
D175: m2 | E175: 210.0 | G175: =E175*F175 -> 0
A176: =A173+1 -> 30 | B176: =B173+1 -> 07-06 | C176: Nabavka, transport i postavljanje termoizolacije krova od ploča mineralne vune debljine 22cm iznad krovne tavanice.
C177: Obračun po m2 komplet izvedene pozicije.
D178: m2 | E178: 333.0 | G178: =E178*F178 -> 0
A180: =A176+1 -> 31 | B180: =B176+1 -> 07-07 | C180: Nabavaka, transport i ugradnja termoizolacije fasadnih zidova od mineralne vune, debljine d = 10 cm, prema standardu SRPS EN 13501 - teško zapaljiv oznake B-s2,d1
C181: Obračun po m2 komplet izvedene poz.
D182: m2 | E182: 150.0 | G182: =E182*F182 -> 0
A184: =A180+1 -> 32 | B184: =B180+1 -> 07-08 | C184: Nabavaka, transport i ugradnja termoizolacije fasadnih zidova od mineralne vune, debljine d = 15 cm, prema standardu SRPS EN 13501 - teško zapaljiv oznake B-s2,d1
C185: Obračun po m2 komplet izvedene poz.
D186: m2 | E186: 366.0 | G186: =E186*F186 -> 0
A189: UKUPNO | C189: =C154 -> IZOLATERSKI RADOVI | E189: 07-00 | G189: =SUM(G156:G186) -> 0
B192: 08-00 | C192: BRAVARSKI RADOVI
C194: Unutrašnja stolarija
B196: 08-01-P | C196: Nabavka, transport i ugradnja unutrašnjih jednokrilnih protivpožarnih vrata otpornih na požar 90min.
C197: II.P. dim. 89/205 cm | D197: kom | E197: 1.0 | G197: =E197*F197 -> 0
A199: =A180+1 -> 32 | B199: =B192+1 -> 08-01 | C199: Nabavka, transport i ugradnja unutrašnjih jednokrilnih vrata od Al profila.
C200: I. dim. 69/205 cm | D200: kom | E200: 7.0 | G200: =E200*F200 -> 0
C201: II. dim. 89/205 cm | D201: kom | E201: 10.0 | G201: =E201*F201 -> 0
C202: III. dim. 99/205 cm | D202: kom | E202: 4.0 | G202: =E202*F202 -> 0
A204: =A199+1 -> 33 | B204: =B199+1 -> 08-02 | C204: Nabavka, transport i ugradnja unutrašnjih dvokrilnih vrata od Al profila.
C205: Vrata su snabdevena kompletnim potrebnim okovom.
C206: Obračun po komadu komplet izvedene poz.
C207: IV.dim. 178/225 cm | D207: kom | E207: 2.0 | G207: =E207*F207 -> 0
C208: V.dim. 218/308 cm | D208: kom | E208: 1.0 | G208: =E208*F208 -> 0
A210: =A204+1 -> 34 | B210: =B204+1 -> 08-03 | C210: Nabavka, transport i ugradnja unutrašnjih dvokrilnih vrata I dva fiksna dela od Al profila.
C211: Vrata su snabdevena kompletnim potrebnim okovom.
C212: Obračun po komadu komplet izvedene poz.
C213: VI.dim. 155+218+155/308 cm | D213: kom | E213: 1.0 | G213: =E213*F213 -> 0
C215: Spoljna stolarija
A217: =A210+1 -> 35 | B217: =B210+1 -> 08-04 | C217: Nabavka, transport i ugradnja jednokrilnih zastakljenih ulaznih vrata od Al profila.
C218: Obračun po komadu komplet izvedene poz.
C219: 1. dim. 97/307cm | D219: kom | E219: 1.0 | G219: =E219*F219 -> 0
A221: =A217+1 -> 36 | B221: =B217+1 -> 08-05 | C221: Nabavka, transport i ugradnja spoljašnjih dvokrilnih vrata I dva fiksna dela od Al profila.
C222: 9. dim. 507/287 cm. | D222: kom | E222: 1.0 | G222: =E222*F222 -> 0
A224: =A217+1 -> 36 | B224: =B221+1 -> 08-06 | C224: Nabavka, transport i ugradnja jednokrilnih, zastakljenih prozora od Al profila.
C225: 2.1. dim. 97/307 cm. | D225: kom | E225: 1.0 | G225: =E225*F225 -> 0
C226: 2.2. dim. 97/247 cm. | D226: kom | E226: 2.0 | G226: 0
C227: 3.1. dim. 107/307 cm. | D227: kom | E227: 1.0 | G227: 0
C228: 3.2. dim. 107/307 cm. | D228: kom | E228: 1.0 | G228: 0
C229: 3.3. dim. 107/247 cm. | D229: kom | E229: 2.0 | G229: 0
C230: 4.1. dim. 135/307 cm. | D230: kom | E230: 4.0 | G230: 0
C231: 4.2. dim. 135/247 cm. | D231: kom | E231: 3.0 | G231: 0
C232: 4.3. dim. 135/247 cm. (otvor za provetravanje - odvođenje dima i toplote stepeništa) | D232: kom | E232: 1.0 | G232: 0
A234: =A224+1 -> 37 | B234: =B224+1 -> 08-07 | C234: Izrada i montaža staklene zavese od bojenih aluminijumskih profila u svemu prema šemama bravarije.
C235: 5. dim. 202/307 cm. | D235: kom | E235: 2.0 | G235: =E235*F235 -> 0
C236: 6. dim. 252/307 cm. | D236: kom | E236: 1.0 | G236: 0
C237: 7.1. dim. 450/307 cm. | D237: kom | E237: 1.0 | G237: 0
C238: 7.2. dim. 450/287 cm. | D238: kom | E238: 1.0 | G238: 0
C239: 8.1. dim. 502/307 cm. | D239: kom | E239: 1.0 | G239: 0
C240: 8.2. dim. 502/287 cm. | D240: kom | E240: 1.0 | G240: 0
C241: 10.1. dim. 547/307 cm. | D241: kom | E241: 1.0 | G241: 0
C242: 10.2. dim. 547/287 cm. | D242: kom | E242: 1.0 | G242: 0
C243: 11. dim. 587/247 cm. | D243: kom | E243: 1.0 | G243: 0
A245: =A234+1 -> 38 | B245: =B234+1 -> 08-08 | C245: Nabavka materijala, transport i ugradnja stepenišne ograde - rukohvata.
C246: Rukohvat se radi od čeličnog profila standardnim postupkom: zatvaranjem svih šupljih profila - kutija i cevi.
C247: Obračun po m1 komplet izvedene poz.
D248: m1 | E248: 7.0 | G248: =E248*F248 -> 0
A250: =A245+1 -> 39 | B250: =B245+1 -> 08-09 | C250: Nabavka materijala, transport i ugradnja stepenišne ograde.
C251: Ograda se radi od čeličnih profila standardnim postupkom: zatvaranjem svih šupljih profila - kutija i cevi.
C252: Obračun po m1 komplet izvedene poz.
D253: m1 | E253: 1.6 | G253: =E253*F253 -> 0
A255: =A250+1 -> 40 | B255: =B250+1 -> 08-10 | C255: Nabavka, transport i ugradnja metalne ograde na galeriji.
C256: Ograda se radi od čeličnih profila standardnim postupkom: zatvaranjem svih šupljih profila - kutija i cevi.
C257: Obračun po m1 komplet izvedene poz.
D258: m1 | E258: 16.5 | G258: =E258*F258 -> 0
A261: UKUPNO | C261: =C192 -> BRAVARSKI RADOVI | E261: 08-00 | G261: =SUM(G192:G260) -> 0
B264: 09-00 | C264: LIMARSKI RADOVI
A266: =A255+1 -> 41 | B266: =B264+1 -> 09-01 | C266: Izrada i montaža horizontalnih oluka-uvala, od bojenog pocinkovanog lima d = 0.6 mm, preko daščane podloge
C267: Obračunava se po m1 komplet izvedene pozicije.
C268: Razvijene širine oko 65 cm
D269: m1 | E269: 31.0 | G269: =E269*F269 -> 0
A271: =A266+1 -> 42 | B271: =B266+1 -> 09-02 | C271: Izrada i montaža opšivke AB venca od bojenog pocinkovanog lima d = 0.6 mm.
C272: Obračunava se po m1 komplet izvedene pozicije.
C273: Razvijene širine oko 60 cm
D274: m1 | E274: 82.0 | G274: =E274*F274 -> 0
A276: =A271+1 -> 43 | B276: =B271+1 -> 09-03 | C276: Izrada i montaža odvodnih olučnih vertikala od bojenog pocinkovanog lima d = 0.55 mm.
C277: Obračunava se po m1 komplet izvedene pozicije.
D278: m1 | E278: 14.0 | G278: =E278*F278 -> 0
A281: UKUPNO | C281: LIMARSKI RADOVI | E281: 10-00 | G281: =SUM(G269:G280) -> 0
B284: 10-00 | C284: FASADERSKI RADOVI
A287: =A276+1 -> 44 | B287: =B284+1 -> 10-01 | C287: Obrada fasade fasadnim premazom i završno obojen fasadnom bojom. | G287: =E287*F287 -> 0
C288: Obračun po m2 komplet izvedene pozicije.
D289: m2 | E289: 303.00 | G289: =E289*F289 -> 0
A291: =A287+1 -> 45 | B291: =B287+1 -> 10-02 | C291: Obrada fasade aluminujumskim fasadnim letvama na podkonstrukciji.
C292: Obračun po m2 komplet izvedene pozicije.
... 54 more rows

Sheet II_VIK
A2: RED. BR. | B2: ŠIFRA POZ. | C2: OPIS | D2: J.M. | E2: KOLIČINA | F2: JED. CENA (BEZ PDV-a) | G2: IZNOS (BEZ PDV-a)
C3: II VODOVOD I KANALIZACIJA
C5: I PRETHODNI RADOVI
A7: 1 | C7: Geodetsko obeležava trase cevovoda
C9: Na osnovu prenosa podataka iz projekta, izvršiti geodetsko obeležavanje cevovoda za izvodjenje sa svim usputnim objektima i uredjajima. Obaveza izvodjača je obezbedjenje i osiguranje tačaka tokom vremena izvodjanja radova. Sve razlike tokom obeležavanja koje su nastale iz opravdanih razloga ili po nalogu Nadzora, evidentirati
C10: Geodetsko obeležavanje trase instalacije:
C11: a) Sanitarna i hidrantska mreža | D11: m' | E11: 70.00 | G11: =E11*F11 -> 0
C12: e) Atmosferska kanalizacija | D12: m' | E12: 67.00 | G12: =E12*F12 -> 0
C13: f) Fekalna kanalizacija | D13: m' | E13: 28.00 | G13: =E13*F13 -> 0
A15: 2 | C15: Razbijanje kolovoza i trotoara sa vraćanjem u provobitno stanje
C17: Na mestima obeleženog za polaganje cevovoda, izvršiti razbijanje postojeće kolovozne i trotoarske konstrukcije. Debljive kolovoza su do 12cm, debljine trotoara su do 8cm uključujući i behaton koji se ručno demontira - ukoliko postoji. Sva razbijanja izvršiti sa prethodnim dvostranim opsecanjem površine namenskim testerama za asfalt i beton, razbijanje pneumatskim alatima. Na delovima trotoarske površine, ručno izvršiti pažljivu demontažu sa odlaganjem behatona pored rova za naknadno vraćanje u probotno stanje - ukoliko behaton postoji. Prosečna širina opsecanja i razbijanje je 80cm. Asfaltiranje kolovoza u dva sloja: BNS22 d=6cm preko tucanika i AB11 d=5cm, betoniranje trotoara sa MB20 d=10cm preko šljunčane podloge i asfaltiranje trotoara sa AB8 d=3cm. Utovar i odvoz šuta obuhvaćeni cenom.
C18: a) Razbijanje, opsecanje i vraćanje u provobitno stanje asfaltnog kolovoza i trotoara | D18: m' | E18: 20.00 | G18: =E18*F18 -> 0
A20: UKUPNO: | C20: PRETHOTNI RADOVI | E20: I | G20: =SUM(G10:G19) -> 0
C23: II GRAĐEVINSKI RADOVI
A25: 1 | C25: Iskop rovova za polaganje cevovoda i šahtova
C27: Izvršiti ručni i mašinski iskop rova u zemlji III kategorije sa pravilnim odsecanjem bočnih strana i dna rova, a prema datom projektu. Sav materijal iz iskopa utovariti u vozilo i trasportovati na deponiju. Dno rova mora biti iskopano i poravnato prema kotama datim u projektu. Potrebno je striktno ostvarivanje pada‚ između zadatih tačaka. Duž trase uraditi proširenje za revizione silaze i vodomerna okna. U slučaju prekopa višak se mora popuniti nabijenim šljunkom o trošku izvođača. U slučaju posebnih uslova, materijala i teškoća koji izuskuju specijalni rad i oruđa, isti će se naknadno obračunavati u dogovoru sa nadzornim organom. Cenom obuhvaćeno razupiranje rovova
C28: Obračunava se iplaća po m3 iskopane samonikle zemlje.
C29: - fekalna kanalizacija | D29: m3 | E29: 36.00 | G29: =E29*F29 -> 0
C30: - kišna kanalizacija | D30: m3 | E30: 103.00 | G30: =E30*F30 -> 0
C31: - vodovod i hidrantska mreža | D31: m3 | E31: 63.00 | G31: =E31*F31 -> 0
A33: 2 | C33: Planiranje dna rova
C35: Po završenom iskopu izvršiti planiranje dna rova prema kotama datim u projektu. Sva prekopana mesta ispuniti nabijenim šljunkom o trošku izvođača.
C36: Obračunava se po m2 isplaniranog dna rova. | D36: m2 | E36: 98.00 | G36: =E36*F36 -> 0
A38: 3 | C38: Nasipanje peska
C40: Izvršiti nabavku i polaganje peska na dno rova, oko i iznad cevi u sloju min. debljine 10cm. Pesak ne sme biti od trošne stene niti imati imati krupne komade kamena ni grudve zemlje u sebi. Pesak mora biti čist, ujednačene granulacije, bez primesa organskih materija.
C41: Obračunava se i plaća po m3 peska u nabijenom stanju prema opštim uslovima i ovom opisu. | D41: m3 | E41: 45.00 | G41: =E41*F41 -> 0
A43: 4 | C43: Nasipanje šljunka ispod saobraćajnica i šahtova
C45: Popunjavanje rova ispod postojećih saobraćajnica izvršiti šljunkom ujednačene granulacije. Šljunak nasuti i ispod revizionih šahtova u visini od 10cm.
C46: Obračunava se i plaća po m3 ugrađenog i nabijenog šnjunka. | D46: m3 | E46: 1.50 | G46: =E46*F46 -> 0
A48: 5 | C48: Zatrpavanje rovova šljunkom ili tucanikom
C50: Posle završetka montaže, ispitivanja i premeravanja cevi, izvršiti zatrpavanje rovova šljunkovitim materijalom ili tucanikom uz nabijanje i kvašenje u slojevima po 20-30cm debljine do potpune zbijenosti na mestima kolovoza i pešačkih staza uz objekat. Pri zatrpavanju voditi računa da prvi sloj do cevovoda a preko peska bude sitna granulacija šljunka ili tucanika bez krupnih komada koji bi mogli da oštete cev.
C51: Obračunava se i plaća po m3 zemlje u nabijenom stanju. | D51: m3 | E51: 96.00 | G51: =E51*F51 -> 0
A53: 6 | C53: Zatrpavanje rovova zemljom iz iskopa
C55: Posle završetka montaže, ispitivanja i premeravanja cevi, izvršiti zatrpavanje rovova zemljom iz iskopa uz nabijanje i kvašenje u slojevima po 20-30cm debljine do potpune zbijenosti na mestima zelenih površina. Pri zatrpavanju voditi računa da prvi sloj do cevovoda a preko peska bude sitna granulacija šljunka ili tucanika bez krupnih komada koji bi mogli da oštete cev.
C56: Obračunava se i plaća po m3 zemlje u nabijenom stanju. | D56: m3 | E56: 64.00 | G56: =E56*F56 -> 0
A58: 7 | C58: Transport preostale zemlje
C60: Izvršiti transport komplet zemlje od iskopa na deponiju koja je za to određena. Cenom obuhvaćeno: utovar, transport, istovar i grubo planiranje na deponiji. Daljina transporta do 10km.
C61: Plaća se po m3 transportovane zemlje. | D61: m3 | E61: 138.00 | G61: =E61*F61 -> 0
A63: 8 | C63: Izrada kružnih revizionih okana
C65: Izvršiti montažu cilindričnih revizionih silaza sa unutrašnjim prečnikom 1.0m od prefabrikovanih (armiranih - nearmiranih) betonskih prstenova debljine zidova 10cm, betonom MB-30. Na dubini oko 1.0m ispod terena ugraditi prefabrikovani element koji cilindrični oblik postepeno sužavati ka jednoj vertikali zida do prečnika 60cm - prefabrikovani završni element. Po toj vertikalnoj strani silaza postaviti penjalice od livenog gvožđa na svakih 30cm. Malterisanje unutrašnjih površina šahta nije potrebno osim spojeva betonskih prstenova. Površina poda silaza - kineta, ne obračunava se u kubaturu već je obuhvaćena cenom.
C66: Obračunava se i plaća po m' ugradjenih prefabrikovanih betonskih prstenova.
C67: Ø1000 (n = 8 komada) | D67: m' | E67: 12.00 | G67: =E67*F67 -> 0
A69: 9 | C69: Izrada vodomernog šahta
C71: Izrada vodomernog šahta dim 1,4x2,5x1,7. Pod uraditi od nabijenog betona od nabijenog betona MB20 d=12cm u padu prema slivniku. Zidovi gornja ploča vodomernog šahta su od MB30 d=20cm. Zidovi i gornja ploča armirani armaturom RA400/500 i MAG 500/560. U gornjoj ploči ostaviti otvor 600 za šaht poklopac. U šahtu ugradito penjalice na 30 cm razmaka .
C72: Obračunava se po komplet izvedenoh šahti | D72: KOM | E72: 1.00 | G72: =E72*F72 -> 0
A74: 10 | C74: Izrada betonskog slapišta
C76: Izrada betonske građevine na mestu izliva kišne kanalizacije u recipijent. Radove izvesti po savetima i pod nadzorom Uprave za održavanje vodotokova .
C77: Obračunava se po komplet izvedenoj građevini | D77: KOM | E77: 2.00 | G77: =E77*F77 -> 0
A79: 11 | C79: Liveno gvozdeni poklopci
C81: Izvršiti nabavku i montažu kružnih liveno-gvozdenih poklopaca Ø600 iznad revizionih okana i vodomernog okna.
C82: Plaća se po komadu montiranog šaht poklopca.
C83: laki - 15kN | D83: KOM | E83: 1.00 | G83: =E83*F83 -> 0
C84: teški - 25kN | D84: KOM | E84: 8.00 | G84: =E84*F84 -> 0
A86: 12 | C86: Liveno gvozdene penjalice
C88: Izvršiti nabavku i montažu liveno-gvozdenih penjalica u vodovodnom šahtu i kanalizacionim revizionim šahtovima.
C89: Plaća se po komadu montirane penjalice. | D89: KOM | E89: 35.00 | G89: =E89*F89 -> 0
A91: 13 | C91: Izrada kružnih slivničkih okana
C93: Izvršiti montažu betonskih bubanj slivnika na na kolovoznoj konstrukciji prečnika 450mm od prefabrikovanih (armiranih - nearmiranih) betonskih prstenova debljine zidova 6-8cm, betonom MB-30. Komplet bubanj slivnika (gajger slivnik) sastoji se od: temeljnog diska 600mm d=10cm, 2 vertikalne betonske cevi dužine 1000mm i rasteretne ploče nad slivnikom za ugradnju LG rešetke.
C94: Obračunava se i plaća po komplektu ugradjenih prefabrikovanih betonskih elemenata.
C95: - Bubanj slivnik | D95: KOM | E95: 3.00 | G95: =E95*F95 -> 0
A97: 14 | C97: Liveno gvozdena slivničaka rešetka
C99: Izvršiti nabavku i montažu LG sivničke rešetke nad bubanj slivnikom tipa T-1, ugradjen u rasteretni prsten
C100: Plaća se po komadu montiranog reštkastog slivnika.
C101: LG slivnik - T-1 | D101: KOM | E101: 3.00 | G101: =E101*F101 -> 0
A103: 15 | C103: Crpljenje stalne podzemne vode
C105: Ako se u toku rada pojavi stalna podzemna voda, mora se crpeti motornim pumpama. Nadzorni organ će voditi tačnu evidenciju o efektivnom radu pumpe.
C106: Obračunava se i plaća po efektivnom satu crpljenja. | D106: čas | E106: 50.00 | G106: =E106*F106 -> 0
C108: U K U P N O G R A Đ E V I N S K I R A D O V I : | G108: =SUM(G28:G107) -> 0
C110: III KANALIZACIJA
A112: 1 | C112: Plastične PP kanalizacione cevi
C113: Izvrštiti nabavku i montažu plastičnih PP kanalizacionih cevi koje se ugrađuju u objekat iznad terena. Cevi ispod svakog mufa pričvrstiti gvozdenim ram-šelnama. O tavanicu cev obesiti oko svakog mufa uzengijom od pljošteg gvožđa 3/40mm. Sva potrebna štemovanja i probijanja zidova od opeke i betona ne plaćaju se odvojeno već su obuhvaćena cenom dužnog metra cevi. Nedovršene delove mreže, veze za vertikale ili sanitarne objekte do njihovog ugrađivanja zatvoriti privremenim drvenim ili plastičnim čepovima odgovarajućeg prečnika.
C114: Obračuva se i plaća po m' motirane i ispitane mreže, mereno po osovini cevi i fazonskih komada.
C115: Ø160 - fekalna kanalizacija | D115: m' | E115: 25.00 | G115: =E115*F115 -> 0
C116: Ø110 - fekalna kanalizacija | D116: m' | E116: 30.00 | G116: =E116*F116 -> 0
C117: Ø75 - fekalna kanalizacija | D117: m' | E117: 2.00 | G117: =E117*F117 -> 0
C118: Ø50 - fekalna kanalizacija | D118: m' | E118: 12.00 | G118: =E118*F118 -> 0
A120: 2 | C120: Plastične kanalizacione cevi od tvrdog PVC - a
C122: Izvršiti nabavku i montažu plastičnih cevi za polaganje u zemlju, koje odgovaraju važećim standardima. Na svim mestima određenim projektom postaviti odgovarajuće fazonske i revizione komade. Pre zatrpavanja celu kanalizacionu mrežu ispitati na vodoizdržljivost u prisustvu nadzornog organa.
C123: Obračunava se i plaća po metru dužnom montirane i ispitane mreže, mereno po osovini cevi i fazonskih komada.
C124: Ø200 | D124: m' | E124: 16.00 | G124: =E124*F124 -> 0
C125: Ø160 | D125: m' | E125: 112.00 | G125: =E125*F125 -> 0
C126: Ø125 | D126: m' | E126: 6.00 | G126: =E126*F126 -> 0
A129: 3 | C129: Ventilacione glave od PVC - a
C130: Izvršiti naavku i montažu ventilacionih glava od polivinilhlorida na mestima datim projektom na krovnim ravnima.
C131: Obračunava se i plaća po montiranom komadu ventilacione glave.
C132: Ø110 | D132: kom | E132: 3.00 | G132: =E132*F132 -> 0
A134: 4 | C134: Olučnjak - Ø125
C135: Izvršiti nabavku i montažu livenog ili PE ("HL") olučnjaka Ø125 za ugradnju na dnu olučnih vertikala.
C136: Plaća se po montiranom komadu olučnjaka. | D136: kom | E136: 2.00 | G136: =E136*F136 -> 0
A138: 5 | C138: LG Olučne zaštitne vertikale - Ø125
C139: Izvršiti nabavku i montažu livenog olučnog zaštitnog komada DN125 spojenog na olučnjak Ø125 u nivou prizemlja za ugradnju na dnu olučnih vertikala. Olučnu zaštitnu cev fiksirati obujmicama za zid na najmanje dva mesta. Dužina olučne zaštitne vertikale je 2m i spojena je u delu mufa sa izvodom oluka sa svedenim elementom kružnog preseka sa potpunim dihtovanjem. LG Olučnu vertikalu uzemljiti.
C140: Plaća se po montiranom komadu olučne vertikale. | D140: kom | E140: 2.00 | G140: =E140*F140 -> 0
A142: 6 | C142: Žablji poklopci
C143: Nabavka iugradnja žabljih poklopaca na ispustu cevi kišne kanalizacije.
C144: Plaća se po montiranom komadužabljeg poklopca.
C145: Ø200 | D145: kom | E145: 1.00 | G145: =E145*F145 -> 0
C146: Ø160 | D146: kom | E146: 1.00 | G146: =E146*F146 -> 0
A148: 7 | C148: Separator benzina i ulja
C150: Izvršiti nabavku trasport i ugradnju separatora ulja - Hauraton AQUAFIX®SK2BP AB ili sličan - koalescentni separator sa taložnikom i dvostrukim bajpasom 6- 10/100 l/s. Ulaz/Izlaz DN200, taložnik 1000l,kapacitet separisanih ulja 688l, D/Š/V:1,5/ 2,45/ 2,53, sa poklopcem klase D400.Masa 4720kg. Separator prema standardu EN558, klasa I
C151: Plaća se po montiranom komadu spremnom za upotrebu. | D151: kom | E151: 1.00 | G151: =E151*F151 -> 0
A153: 8 | C153: Priključak na gradsku kanalizaciju
C155: Izvršiti priključenje objekta na gradsku kanalizacionu mrežu prema uslovima JKP vodovod i kanalizacija. Svi priključci se vrše na projektovane šahtove planirane ulične fekalne i kišne kanalizacije.
C156: Plaća se po broju komplet izvedenih priključaka. | D156: kom | E156: 1.00 | G156: =E156*F156 -> 0
C158: U K U P N O K A N A L I Z A C I J A : | G158: =SUM(G114:G157) -> 0
C160: IV VODOVODNA MREŽA
A162: 1 | C162: Polietilenske vodovodne cevi
C163: Izvršiti nabavku i montažu PE cevi za montažu van objekta i za ulazne cevi do vodovodnih vertikala unutar objekta. Sve PE cevi su nazivog pritiska PN10bara. Cenom obuhvaćen sav prateći i spojno zaptvni materijal počev od mesta spoja, preko prodora u objektu do mesta račvanja unutar objekta na sanitarne i hidrantske sisteme
C164: Ø110 | D164: m' | E164: 36.00 | G164: =E164*F164 -> 0
C165: Ø75 | D165: m' | E165: 18.00 | G165: =E165*F165 -> 0
C166: Ø25 | D166: m' | E166: 21.00 | G166: =E166*F166 -> 0
A168: 2 | C168: Liveno-gvozdene fazonski komadi i fazonerija
C169: Izvršiti nabavku i montažu liveno-gvozdenih fazonskih komada za montažu spoljnih hidranata na protivpožarni prsten i vodovodnog priključka za objekat i druge potrebe po projektu.
C170: fazonski komadi | D170: kg | E170: 15.00 | G170: =E170*F170 -> 0
C171: Ventil DN100 na priključku + ugradbena garnitura + kapa | D171: KOM | E171: 1.00 | G171: =E171*F171 -> 0
A173: 3 | C173: Polietilenske vodovodne cevi
C174: Izvršiti nabavku i montažu polipropilenskih vodovodnih cevi sa svim odgovarajućim fitinzima PN10 SDR11. Cevi moraju da imaju sertifikat da se mogu koristiti kao cevi za transport pitke vode. Cevi za zidove moraju biti pričvršćene dvostrukim obujmicama na svakih 1,5-2,0m. Prilikom montaže neophodno je pridržavati se preporuka proizvodjača, posebno u vezi sa temperaturnim dilatacijama, kako u slobodnom prostoru (lire i aksijalni kompenzatori), tako i u zidovima (omotavanje cevi filcom i sl.). Celokupna vodovdna instalacija pre zatvaranja žljebova i malterisanja mora biti ispitana na pritisak od 12 bara prema važećim propisima.
C175: Obračunava se i plaća po metru dužnom montirane vodovodne cevi.
C176: Dn 25x3.5 - unutrašnji prečnik 18.0 | D176: m' | E176: 4.00 | G176: =E176*F176 -> 0
C177: Dn 20x2.8 - unutrašnji prečnik 14.4 | D177: m' | E177: 22.00 | G177: =E177*F177 -> 0
A179: 4 | C179: Čelično-pocinkovane vodovodne cevi
C180: Izvršiti nabavku i montažu čelično pocinkovanih vodovodnih cevi sa svim odgovarajućim fitinzima. Cevi moraju da odgovaraju važećim propisima. Cevi za zidove moraju biti pričvršćene dvostrukim obujmicama na svakih 1,5-2,0m. Cevi u zemlji i kroz konstrukciju moraju biti premazane jedanput bitulitom, zatim bitumenom i obavijene bituminiziranom jutom. Razvod u zidu obavezno izolaovati ''dekorodal'' trakom ili filcom, tako da se izbegne svaki dodir sa malterom. Celokupna vodovdna instalacija pre zatvaranja žljebova i malterisanja mora biti ispitana na pritisak od 12 bara prema važećim propisima.
C181: Obračunava se i plaća po metru dužnom montirane vodovodne cevi.
C182: Ø65 | D182: m' | E182: 2.00 | G182: =E182*F182 -> 0
C183: Ø50 | D183: m' | E183: 11.20 | G183: =E183*F183 -> 0
A185: 5 | C185: Ravni propusni mesingani ventili i LG zatvarači
C186: Izvršiti nabavku i montažu mesinganih ravnih propusnih ventila sa točkićem i LG zatvarača za zatvaranje kod vodomera, česmi, sektorskih grana i na drugim označenim mestima.
C187: Plaća se po komadu montiranog ventila.
C188: Ø50 | D188: KOM | E188: 2.00 | G188: =E188*F188 -> 0.00
C189: Ø25 | D189: KOM | E189: 1.00 | G189: =E189*F189 -> 0.00
C190: Ø20 | D190: KOM | E190: 4.00 | G190: =E190*F190 -> 0.00
C191: Ø15 | D191: KOM | E191: 8.00 | G191: =E191*F191 -> 0.00
C192: Ø80 - LG | D192: KOM | E192: 2.00 | G192: =E192*F192 -> 0.00
A194: 6 | C194: Ravni propusni ventil sa ogrankom za pražnjenje
C195: Izvršiti nabavku i montažu mesinganih ravnih propusnih ventila za metalne cevi sa ogrankom za pražnjenje mreže unutar prostora Za smeštaj vodomera.
C196: Plaća se po komadu montiranog ventila.
C197: Ø25 | D197: KOM | E197: 1.00 | G197: =E197*F197 -> 0
C198: Ø20 | D198: KOM | E198: 1.00 | G198: =E198*F198 -> 0
A200: 7 | C200: Propusni ventil za uzidanje sa kapom za PP cevi
C202: Izvršiti nabavki i montažu propusnih ventila sa kapom na mestima datim projektom. Dužinu kape odrediti na licu mesta, prema ugradjenoj keramici. Ventil mora odgovarati važećim standardima.
C203: Plaća se po komadu montiranog ventila.
C204: Dn25 | D204: KOM | E204: 1.00 | G204: =E204*F204 -> 0
C205: Dn20 | D205: KOM | E205: 8.00 | G205: =E205*F205 -> 0
A207: 8 | C207: Ugaoni ''EK'' sa kapom
C209: Izvršiti nabavku i montažu ugaonih ''EK'' ventila Ø15 sa kapom. Ventil mora odgovarati važećim standardima.
C210: Plaća se po komadu montiranog ventila. | D210: KOM | E210: 16.00 | G210: =E210*F210 -> 0
A212: 9 | C212: Termička izolacija za PP i PCC vodovodne cevi
C214: Izvršiti nabavku i montažu termičke izolacije ''ARMACELL'' ili sl. za PP i PCC cevi na mreži hladne i hidrantske vode na mestima van zidova. Debljina izolacije 19mm.
C215: Obračunava se i plaća po m' montirane izolacije.
C216: za cevi Dn25 | D216: m' | E216: 4.00 | G216: =E216*F216 -> 0
C217: za cevi Dn20 | D217: m' | E217: 22.00 | G217: =E217*F217 -> 0
A219: 10 | C219: Vodomer
C221: Izvršiti nabavku i montažu baždarenog vodomera, dimenzija datih u projektu. Pozicijom su obuhvaćeni i skupljači nečistoće ispred vodomera, koji su istog prečnika kao i vodomeri.
C222: Obračunava se i plaća po komplet montiranom komadu.
C223: Ø80 za hidrantsku i sprinkler mrežu | D223: KOM | E223: 1.00 | G223: =E223*F223 -> 0
C224: Ø20 za sanitarnu mrežu | D224: KOM | E224: 1.00 | G224: =E224*F224 -> 0
A226: 11 | C226: Požarni hidrant unutrašnji
C228: Izvršiti nabavku i montažu zidnog požarnog hidranta Ø52mm sa mlaznicom, crevom od trevire dužine 15m i ventilom ugrađenog u metalnu kutiju. Kutija mora biti vidno obojena i sa ključem.
C229: Plaća se po komadu montiranog hidranta. | D229: KOM | E229: 2.00 | G229: =E229*F229 -> 0
A231: 12 | C231: Požarni hidrant spoljašnji
C233: Izvršiti nabavku i montažu spoljnog nadzemnog požarnog hidranta Ø80mm sa posebno slobodnostojećim ormanom sa propisanom opremom u metalnu kutiju. Kutija mora biti vidno obojena i sa ključem.
C234: Plaća se po komadu montiranog hidranta. | D234: KOM | E234: 1.00 | G234: =E234*F234 -> 0
A236: 13 | C236: Ispitivanje na vododrživost
C238: Izvršiti ispitivanje montirane vodovodne mreže svih prečnika na vodoizdrživost prema datim uputstvima. Potrebnu količinu vode kao i uredjaje za ukupno i sektorsko ispitivanje i povišenje pritiska za ispitivanje obezbeđuje izvođač.
C239: Obračunava se i plaća po metru dužnom cevovoda. | D239: m' | E239: 114.20 | G239: =E239*F239 -> 0
A241: 14 | C241: Dezinfekcija vodovodne mreže
C243: Izvršiti dezinfekciju montirane i ispitane vodovodnemreže u objektu prema važećim propisima.
C244: Obračunava se i plaća po metru dužnom cevovoda. | D244: m' | E244: 114.20 | G244: =E244*F244 -> 0
A246: 15 | C246: Ispitivanje kvaliteta vode
C248: Posle izvršene dezinfekcije izvšiti ispitivanje uzoraka vode iz novomontirane vodovodne mreže u higijenskom zavodu - na ispravnost za piće.
C249: Plaća se po ispostavljenom računu.
C250: orjentaciono | E250: 1.0 | G250: =E250*F250 -> 0
A252: 16 | C252: Priključak na gradsku mrežu
C254: Izvršiti priključenje objekta na gradsku mrežu vodovoda shodno uslovima priključenja JKP Beogradski vodovod i kanalizacija.
C255: Plaća se po broju komplet izvedenih priključaka. | D255: KOM | E255: 1.00 | G255: =E255*F255 -> 0
C257: U K U P N O V O D O V O D : | G257: =SUM(G163:G256) -> 0
C259: V SANITARNI OBJEKTI I PRIBOR
C261: OPŠTI OPIS
C262: Sve sanitarne objekte izvođač je dužan nabaviti tek na osnovu odobrenih uglednih primeraka od strane nadzornog organa. Svi objekti su I klase bele boje. Boja može biti i drugačija ako investitor to zahteva projektnim zadatkom. sanitarni objekti kanalizacionom mrežom, bez oštećenja. Sve eventualno oštećene objekte i opremu izvođač je dužan o svom trošku skinuti i montirati nove. Cenom pozicije radova obuhvaćena su sva potrebna štemovanja i ugrađivanje plastičnih tiplova sa potrebnim krpljenjem i malterisanjem. Svi upotrebljeni zavrtnji kod veza sanitarnih objekata moraju biti mesingani, a za galanteriju poniklovani. Sva sanitarna oprema i pribor su domaće proizvodnje.
A264: 1 | C264: Engleski klozet - konzolni
C266: Izvršiti nabavku i montažu engleskog konzolnog klozeta:
C267: konzolnu WC šolju od fajansa bele boje
C268: klozetsku dasku sa poklopcem od pune plastike, snabevenu odbojnicima
C269: ispirač niskomontažni, ugradni, povezan sa šoljom plastičnom cevi Ø32mm sa obujmicom i gumenim odbojnikom
C270: Plaća se po montiranom komadu. | D270: kom | E270: 6.00 | G270: =E270*F270 -> 0
A272: 2 | C272: WC šolja monoblok - za invalide
C274: Nabavka i montaža komplet monoblok WC konzolne šolje za invalide sa svom pripadajućom opremom: ‐ keramička školjka sa horizontalnim odlivom, ‐ poklopac za klozetsku šolju ‐ spojna, ispirna cev sa gumenim umetkom, ‐ savitljiva, spojna cev za vodokotlić, ‐ aktiviranje ispirača s prednje strane, ‐ ugaoni ventil DN15, Obračun po komadu sve montirano, povezano i ispitano. Sve po izboru investitora. Obračun po kompletu.
C275: Plaća se po montiranom komadu. | D275: kom | E275: 1.00 | G275: =E275*F275 -> 0
A277: 3 | C277: Držač toalet papira
C279: Izvršiti nabavku i montažu hromiranog držača rolo toalet papira.
C280: Obračunava se i plaća po montiranom komadu. | D280: kom | E280: 6.00 | G280: =E280*F280 -> 0
A282: 4 | C282: Umivaonik
C284: Izvršiti nabavku i montažu komplet umivaonika od fajansa koji mora odgovarati važećim standardima. Školjka mora biti snabdevena otvorom za odvod, prelivom i čepom za zatvaranje odvodnog otvora. Ispod školjke montirati hromirani sifon koji i spojiti ga sa kanalizacijom. Spoj prekriti niklovanom rozetnom. kačenje i fiksiranje izvršiti putem žabica ili šrafova uz predhodnu ugradnju plastičnih tiplova.
C285: Obračunava se i plaća po montirano komadu. | D285: kom | E285: 4.00 | G285: =E285*F285 -> 0
A287: 5 | C287: Umivaonik za invalide
C289: Nabavka, transport i montaža umivaonika od keramike dimenzija prilagodjenog za invalide . Montaža umivaonika konzolno na zid sa otvorom za bateriju, proizvođača "Keramag Geberit group, Kolo group" ili drugi proizvođač. Komplet umivaonika sastoji se od: ‐ keramički umivaonik, sa otvorom za armaturu, sa prelivom (tip KOLO, serija REKORD ili ekvivalentno) ‐ poniklovani sifon za priključivanje umivaonika na kanalizaciju Sve po izboru investitora. Obračun po kompletu.
C290: Obračunava se i plaća po montirano komadu. | D290: kom | E290: 1.00 | G290: =E290*F290 -> 0
A292: 6 | C292: Baterija za umivaonik
C294: Izvršiti nabavku i montažu jednoručne niklovane baterije za umivaonik.
C295: Obračunava se i plaća po montiranom komadu.
C296: za niskomontažni protočni bojler - tri cevi | D296: kom | E296: 4.00 | G296: =E296*F296 -> 0
... 46 more rows

Sheet III_EE
A1: ELEKTRO ENERGETSKE INSTALACIJE
A3: NAPOMENA: Ovim predmerom i predračunom predviđa se isporuka svog potrebnog materijala i opreme, ugrađivanje kako je to navedeno u pojedinim pozicijama, ispitivanje i puštanje u rad, kao i dovođenje u ispravno stanje svih oštećenih mesta na već izvedenim radovima. Sav upotrebljeni materijal mora biti prvoklasnog kvaliteta. Svi radovi moraju biti izvedeni stručnom snagom, a u potpunosti prema Srpskim propisima i važećim standardima za ovu vrstu radova. U cenu se uračunava sav navedeni materijal u pozicijama i sav sitan materijal, koji prati dotičnu poziciju, transport, kao i cenu radne snage sa svim porezima i doprinosima. Cena uključuje ispitivanje i puštanje u ispravan rad svih elemenata instalacije navedenih u pozicijama. Izvođač je dužan da radove izvrši u svemu prema priloženom tehničkom izveštaju, tehničkim uslovima, predmeru i predračunu i crtežima, da pre početka radova dobro prouči dobijenu dokumentaciju i da na vreme upozori na eventualna odstupanja od postojećih propisa. Izvođač se takodje ne oslobađa obaveze izvođenja pojedinih radova, koji su predviđeni predmerom i predračunom, a eventualno nisu napomenuti u tehničkom opisu ili ma na kom drugom prilogu ovog projekta, a što je obavezan da uradi po važećim propisima za izvodjenja instalacija za ovu vrstu objekta.
A10: RED. BR. | B10: ŠIFRA POZ. | C10: OPIS | D10: J.M. | E10: KOLIČINA | F10: JED. CENA (BEZ PDV-a) | G10: IZNOS (BEZ PDV-a)
C11: I ENERGETSKE INSTALACIJE U OBJEKTU
C13: A. GLAVNI NAPOJNI VODOVI OBJEKTA
A15: 1 | C15: Isporuka i polaganje napojnog kabla tipa PP00-A 4x25mm od IMO do KPK sa povezivanjem na oba kraja. Cena je data po metru dužnom položenog kabla.
D16: m | E16: 20 | G16: =F16*E16 -> 0.00
A18: 2 | C18: Isporuka i polaganje napojnog kabla tipa N2XH 4x16mm2 od KPK do GRO sa povezivanjem na oba kraja. Cena je data po metru dužnom položenog kabla.
D19: m | E19: 16 | G19: =F19*E19 -> 0.00
A20: 3 | C20: Isporuka i polaganje napojnog kabla tipa N2XH-J 1x16mm od SIP-a do glavnog razvodnog ormara GRO sa povezivanjem na oba kraja. Cena je data po metru dužnom položenog kabla.
D21: m | E21: 5 | G21: =F21*E21 -> 0.00
A23: 4 | C23: Isporuka i polaganje cevi PE fi 110mm od KPK do IMO .
D24: m | E24: 15 | G24: =F24*E24 -> 0.00
C27: UKUPNO pod A: | G27: =SUM(G15:G25) -> 0.00
C29: B. RAZVODNI ORMANI
A31: 1 | C31: Isporuka, transport, šemiranje, montaža i povezivanje glavnog razvodnog ormana GRO namenjene za montažu u zid , kako je dato jednopolnom šemom. Na unutrašnjoj strani vrata se lepi jednopolna šema table sa svim potrebnim električnim podacima o razvodu. Tabla se izrađuje od plastičnog bezhalogenog materijala. Tabla ima DIN šine i 2 sabirnice (zaštitna i nulta).Placa se rad i materijal po razvodnoj tabli, opremljenom sledecom elektricnom opremom:
C33: 1 kom.-uzidna spratna tabla veličine 72 modula
C34: 1 kom.-zaštitni uredjaj diferencijalne struje 40/0,5A,4 pola ,FID sklopka
C35: 2 kom.-zaštitni uredjaj diferencijalne struje 25/0,03A,4 pola ,FID sklopka
C36: 1 kom-PrenaponskA zaštitA klase 1 tip PZH R1 275/25/3+1, 7710063, (Hermi). Povezivanje faznih provodnika nule i neutralnog provodnika.
C37: 3 kom. 1-polni automatski osigurač MC32/ C25
C38: 3 kom. 1-polni automatski osigurač MC32/ C20
C39: 3 kom.- 1-polni automatski osigurač MC32/ C16
C40: 21 kom.- 1-polni automatski osigurač MC32/ B16
C41: 9 kom.- 1-polni automatski osigurač MC32/ B10
C42: 4 kom.- 1-polni automatski osigurač MC32/ B6
C43: 2 kom.-Grebenasta sklopka, 1-0-2, 20A, 1-polna
C44: 1 kom.-Instalacioni kontaktor 16A, sa kontaktima 2NO 230/240VAC
C45: 1 kom.-Instalacioni kontaktor 16A, sa kontaktima 1NO 230/240VAC
C46: 1 kom.-foto rele sa senzorom
C47: 1 kom.-Tajmer
C48: 3 kom.-Signalna lampica LED zelena, montaža na vrata ormana
D49: kom. | E49: 1 | G49: =F49*E49 -> 0.00
A51: 2 | C51: Isporuka, transport, šemiranje, montaža i povezivanje razvodnog ormana RO-S namenjene za montažu u zid , kako je dato jednopolnom šemom. Na unutrašnjoj strani vrata se lepi jednopolna šema table sa svim potrebnim električnim podacima o razvodu. Tabla se izrađuje od plastičnog bezhalogenog materijala. Tabla ima DIN šine i 2 sabirnice (zaštitna i nulta).Placa se rad i materijal po razvodnoj tabli, opremljenom sledecom elektricnom opremom :
C52: 1 kom.-uzidna spratna tabla veličine 48 modula
C53: 1 kom.-Glavni rastavljač sličan INS40A
C54: 1 kom.-zaštitni uredjaj diferencijalne struje 25/0,03A,4 pola ,FID sklopka
C55: 3 kom.- 1-polni automatski osigurač MC32/ C16
C56: 13 kom. 1-polni automatski osigurač MC32/ B16
C57: 8 kom.- 1-polni automatski osigurač MC32/ B10
C58: 3 kom.- 1-polni automatski osigurač MC32/ B6
C59: 3 kom.-Signalna lampica LED zelena, montaža na vrata ormana
D60: kom. | E60: 1 | G60: =F60*E60 -> 0.00
C63: UKUPNO pod B: | F63: =SUM(G30:G61) -> 0.00
C65: C. ELEKTRIČNE INSTALACIJE
A67: 1 | C67: Isporuka i ugradnja PVC gibljivih lakih cevi fi 16mm u betonske elemente konstrukcije na mestu prolaza kablova kroz iste, pre izlivanja betona.
D68: m | E68: 50 | G68: =F68*E68 -> 0.00
A70: 2 | C70: Isporuka i ugradnja PVC dozni 78mm sa poklopcem na pozicijama udvajanja kablova / instalacionih provodnika.
D71: kom. | E71: 60 | G71: =F71*E71 -> 0.00
A73: 3 | C73: Isporuka i polaganje po zidu (pre malterisanja) odnosno kroz prethodno položene cevi ili vidno po zidovima i tavanicama na odstojnim obujmicama, instalacionih provodnika tipa N2XH-J 3x1,5mm2 za instalacije rasvete .
D74: m | E74: 670 | G74: =F74*E74 -> 0.00
A76: 4 | C76: Isporuka i polaganje po zidu (pre malterisanja) odnosno kroz prethodno položene cevi ili vidno po zidovima i tavanicama na odstojnim obujmicama, instalacionih provodnika tipa N2XH-J 3x2,5mm2 za instalacije monofaznih priključnica i druge razgranate instalacije.
D77: m | E77: 880 | G77: =F77*E77 -> 0.00
A79: 5 | C79: Isporuka i polaganje po zidu (pre malterisanja) odnosno kroz prethodno položene cevi ili vidno po zidovima i tavanicama na odstojnim obujmicama, instalacionih provodnika tipa N2XH-J 5x2,5mm2 za instalacije trofaznih prikljucaka.
D80: m | E80: 65 | G80: =F80*E80 -> 0.00
A82: 6 | C82: Isporuka i polaganje po zidu (pre malterisanja) odnosno kroz prethodno položene cevi ili vidno po zidovima i tavanicama na odstojnim obujmicama, instalacionih provodnika tipa N2XH-J 5x4 mm2 za instalacije napajanjaspratne table RO-S.
D83: m | E83: 24 | G83: =F83*E83 -> 0.00
A85: 7 | C85: Isporuka, montaža i povezivanje komplet instalacione prekidačko / priključne opreme prema priloženoj specifikaciji. Pozicija uključuje prekidačko / priključna tela, montažne pločice, zaštitno dekorativne maske. Pre nabavke istih, usaglasiti boju sa arhitektom.
A86: 7,1 | C86: Isporuka i montaža jednopolnog prekidača zaštite IP20 tipa Schneider Unica ili slično, komplet sa sledećom opremom:
C87: 1 kom - dozna za malter 2M
C88: 1 kom - nosač 2M
C89: 1 kom - okvir beli 2M
C90: 1 kom - jednopolni prekidač, 10A, 2M
C91: Komplet materijal i rad | D91: kom | E91: 7 | G91: =F91*E91 -> 0.00
A93: 7,2 | C93: Isporuka i montaža bloka (serijskog) prekidača zaštite IP20 tipa Schneider Unica ili slično, komplet sa sledećom opremom:
C94: 1 kom - dozna za malter 2M
C95: 1 kom - nosač 2M
C96: 1 kom - okvir beli 2M
C97: 2 kom - jednopolni prekidač, 10A, 1M
C98: Komplet materijal i rad | D98: kom | E98: 6 | G98: =F98*E98 -> 0.00
A100: 7,3 | C100: Isporuka i montaža naizmenicnog prekidača zaštite IP20 tipa Schneider Unica ili slično, komplet sa sledećom opremom:
C101: 1 kom - dozna za malter 2M
C102: 1 kom - nosač 2M
C103: 1 kom - okvir beli 2M
C104: 1 kom - naizmenični prekidač 10A, 2M
C105: Komplet materijal i rad | D105: kom | E105: 2 | G105: =F105*E105 -> 0.00
A107: 7,4 | C107: Isporuka i montaža bloka prekidača zaštite IP20 tipa Schneider Unica ili slično, komplet sa sledećom opremom:
C108: 1 kom - dozna za malter 2M
C109: 1 kom - nosač 2M
C110: 1 kom - okvir beli 2M
C111: 1kom - jednopolni prekidač, 10A, 1M
C112: 1 kom - jednopolni prekidač sa indikacijom,16A, 1M
C113: Komplet materijal i rad | D113: kom | E113: 4 | G113: =F113*E113 -> 0.00
A115: 7,5 | C115: Isporuka i montaža bloka prekidača zaštite IP20 tipa Schneider Unica ili sl. komplet sa sledećom opremom:
C116: 1 kom - dozna za malter 3M
C117: 1 kom - nosač 3M
C118: 1 kom - okvir beli 3M
C119: 1 kom - jednopolni prekidač ,10A, 1M
C120: 2 kom - naizmenični prekidač 10A, 2M
C121: Komplet materijal i rad | D121: kom | E121: 2 | G121: =F121*E121 -> 0.00
A123: 7,6 | C123: Isporuka i montaža priključnica , za ugradnju u zid, komplet za četiri modula komplet sa sledećom opremom:
C124: 1 kom - dozna za malter 4M
C125: 1 kom - nosač 4M
C126: 1 kom - okvir beli 4M
C127: 2 kom - šuko utičnica 2P+E, 16A, 2M, bela
C128: Komplet materijal i rad | D128: kom | E128: 14 | G128: =F128*E128 -> 0.00
A130: 7,7 | C130: Monofazna priključnica, mrežno napajanje, 2P+E, 16A, 250V, bele boje, za ugradnju u zid IP20, komplet za dva modula
C131: Komplet materijal i rad | D131: kom | E131: 35 | G131: =F131*E131 -> 0.00
A133: 7,8 | C133: Monofazna priključnica, mrežno napajanje, 2P+E, 16A, 250V, bele boje, za ugradnju u zid sa poklopcem IP44, bele boje, komplet za dva modula
C134: Komplet materijal i rad | D134: kom | E134: 4 | G134: =F134*E134 -> 0.00
A136: 8 | C136: Isporuka i montaža detektora pokreta i prisutnosti 360º, 230VAC, 50Hz, sa kontaktom od 8A, u zaštiti IP54. Podešavanje osvetljaja od 5 do 1000Lx; podešavanje vremena zadrške od 5sec. Do 15min.
C137: Komplet materijal i rad | D137: kom | E137: 10 | G137: =F137*E137 -> 0.00
A139: 9 | C139: Set za zatvaranje prodora kablova kroz protivpožarni zid/ploču (prolazak kablova iz jednog PP sektora u drugi) koji se sastoji od: - Požarnootporne gotove ploče, od mineral fibera tip PSX-P Obo Bettermann - Požarootporne git mase, građevinski materijal za ubrizgavanje tip ASX-E Obo Bettermann - Pločica za označavanje vatrootpornog prodora tip KS-S EN Obo Bettermann Obračun dat po m2 površini otvora koji se zatvara. Napomena: 1. Set za zatvaranje prodora kablova treba da poseduje odgovarajuće ateste važeće u Republici Srbiji 2. Obrada prodora protivpožarnih zidova zaštitnom masom treba da bude izvedena od strane ovlašćenog lica sa odgovarajućim atestima važećim u Republici Srbiji
C140: Komplet materijal i rad | D140: m2 | E140: 0.2 | G140: =F140*E140 -> 0.00
A142: UKUPNO pod C: | F142: =SUM(G67:G141) -> 0.00
C144: E. RASVETNA TELA
C145: Svetiljke uskladiti sa rešenjem arhitekte i zahtevima investitora .
A147: 1 | C147: S3: Nadgradna svetiljka za direktno osvetljenje, visoke energetske efikasnosti, za kvalitetno osvetljenje poslovnih prostora. Potpun vidni komfor obezbeđen najnovijim optičkim komponentama i elektrokomponentama. Bočni raster od sjajnog aluminijuma za povećanu energetsku efikasnost. Visokotransparentni difuzor mikroprizmatične strukture obezbeđuje zaštitu od blještanja i ujednačeno difuzno svetlo. Opalna folija obezbeđuje ujednačeno prosvetljenu površinu, bez uočljivosti izvora svetla za pun vizuelni komfor. Svetiljka od čeličnog lima debljine 0,6mm, završno zaštićena epoksi- poliester prahom specijalne bele reflektujuće boje. Ukupna snaga svetiljke: 42.0W. Temperatura boje svetla 4000 K sa indeksom reprodukcije boje (CRI) >80. Životni vek led izvora svetlosti 60000 sati, uz uslov da fluks ne opadne na manje od 80% inicijalnog fluksa po isteku 50000 sati (L80B10). Inicijalni fluks svetiljke je 5000lm. Efikasnost svetiljke ne manja od 119lm/W. Devijacija boje svetla (SDCM) manja od 3. Stepen blještanja svetiljke UGR < 19. Dimenzije svetiljke 600/466/60 A/B/H[mm]. Stepen zaštite IP40. Svetiljka je servisibilna, odnosno ugrađeni izvori svetla i drajveri su izmenjljivi prema ZHAGA standardu. Proizvođač svetiljki poseduje važeće sertifikate: ISO 9001:2015, ISO 27001:2013 ,ISO 14001:2015, ISO 45001:2018, ISO 50001:2011. Svetiljka tipa ORIEN CDP 2 600 HO /840, proizvođač Buck.
D148: kom | E148: 50 | G148: =F148*E148 -> 0.00
A150: 2 | C150: S4: Viseća linijska svetiljka za direktno i indirektno osvetljenje, visoke energetske efikasnosti, za kvalitetno osvetljenje poslovnih prostora. Za direktnu svetlosnu komponentu višeslojni optički pribor : ekstrudirani transparentni/ opalni beli difuzor, CDP prizmatični difuzor i opalna difuzna folija. Za indirektnu svetlosnu komponentu: satinirani protektor od PMMA. Obe komponente obezbeđuju visoku energetsku efikasnost >100 lm/W i pun vidni komfor. Svetiljka od ekstrudiranog aluminijuma. Završna obrada - eloksiranje u boji prirodnog aluminijuma ili zaštita epoksi-poliester prahom sitnostrukturne teksture. Svetiljka se isporučuje sa ovesnim priborom. Ukupna snaga svetiljke: 46W. Temperatura boje svetla 4000 K sa indeksom reprodukcije boje (CRI) >80. Životni vek led izvora svetlosti 60000 sati, uz uslov da fluks ne opadne na manje od 80% inicijalnog fluksa po isteku 50000 sati (L80B10). Inicijalni fluks svetiljke je 6331lm. Efikasnost svetiljke ne manja od 138lm/W. Devijacija boje svetla (SDCM) manja od 3. Stepen blještanja svetiljke UGR < 16. Dimenzije svetiljke 1126/60/110 A/B/H[mm]. Stepen zaštite IP40. Svetiljka je servisibilna, odnosno ugrađeni izvori svetla i drajveri su izmenjljivi prema ZHAGA standardu. Proizvođač svetiljki poseduje važeće sertifikate: ISO 9001:2015, ISO 27001:2013 ,ISO 14001:2015, ISO 45001:2018, ISO 50001:2011. Svetiljka tipa DUAL S CDP 1200 /840 HO, proizvođač Buck.
D152: kom | E152: 11 | G152: =F152*E152 -> 0.00
A154: 3 | C154: S5: Nadgradna svetiljka za direktno osvetljenje. Svetiljka od aluminijumske cevi, završno zaštićena epoksi-poliester prahom sitnostrukturne teksture. Ukupna snaga svetiljke: 11W. Temperatura boje svetla 4000 K sa indeksom reprodukcije boje (CRI) >80. Životni vek led izvora svetlosti 55000 sati, uz uslov da fluks ne opadne na manje od 90% inicijalnog fluksa po isteku 50000 sati (L90B10). Inicijalni fluks svetiljke je 1494lm. Efikasnost svetiljke ne manja od 136lm/W. Devijacija boje svetla (SDCM) manja od 3. Stepen blještanja svetiljke UGR < 13. Dimenzije svetiljke 120/190 Ø/H[mm]. Stepen zaštite IP20. Svetiljka je servisibilna, odnosno ugrađeni izvori svetla i drajveri su izmenjljivi prema ZHAGA standardu. Proizvođač svetiljki poseduje važeće sertifikate: ISO 9001:2015, ISO 27001:2013 ,ISO 14001:2015, ISO 45001:2018, ISO 50001:2011. Svetiljka tipa NEO SPOT TB INT 190-1500 /840, proizvođač Buck.
D155: kom | E155: 10 | G155: =F155*E155 -> 0.00
A157: 4 | C157: S6: Nadgradna kružna svetiljka sa kućištem od polikarbonata i difuzorom od samogasivog polikarbonata. Ukupna snaga svetiljke 18W, temperatura boje svetla 4000K sa indeksom reprodukcije boje (CRI) >80, inicijalni fluks svetiljke 1796lm. Životni vek led izvora svetlosti 30000 sati L70B50. Stepen zaštite IP65. Dimenzije svetiljke 280/55 Ø/H[mm]. Svetiljka tip PASTILLA. Isporučilac Buck.
D158: kom | E158: 30 | G158: =F158*E158 -> 0.00
A160: 5 | C160: P2: Isporuka i ugradnja jednostrane protivpanične nadgradne svetiljke sa piktogramom za označavanje izlaza, u trajnom spoju, bele boje, sa polikarbonatnim kućištem, IP65. Svetiljka poseduje LED traku kao izvor svetlosti, snage 2.5W, 200Lm. Svetiljka poseduje sopstvenu bateriju, autonomije 1h. Slična tipu Eaton Safelite (SL2MNM65F1C3A)
D161: kom | E161: 4 | G161: =F161*E161 -> 0.00
A163: 6 | C163: P3: Isporuka i ugradnja jednostrane protivpanične nadgradne svetiljke sa piktogramom za označavanje izlaza, u trajnom spoju, bele boje, sa polikarbonatnim kućištem, IP42. Svetiljka poseduje LED traku kao izvor svetlosti, snage 2.8W, 150Lm. Svetiljka poseduje sopstvenu bateriju, autonomije 1h. Slična tipu Eaton Safelite (SL2MNM42E1C3A )
D164: kom | E164: 9 | G164: =F164*E164 -> 0.00
A166: 7 | C166: P4: Isporuka i ugradnja jednostrane protivpanične nadgradne svetiljke sa piktogramom za pravca evakuacije, u trajnom spoju, bele boje, sa polikarbonatnim kućištem, IP42. Svetiljka poseduje LED traku kao izvor svetlosti, snage 2.8W, 150Lm. Svetiljka poseduje sopstvenu bateriju, autonomije 1h. Slična tipu Eaton Safelite (SL2MNM42E1C3A )
D167: kom | E167: 9 | G167: =F167*E167 -> 0.00
C169: UKUPNO pod E: | F169: =SUM(G146:G168) -> 0.00
C172: F. SISTEM ZA OTVARANJE PROZORA ZA ODIMLJAVANJE
A174: 1 | C174: GEZE THZ Comfort kompaktna centrala za upravljanje prozorom na stepenicama. Centrala napaja motore strujom do 4.5 A na naponu od 24 v DC. Centrala se po potrebi moze „umreziti“ i povezati sa slicnim centralama THZ Comfort ili sa PP centralom (kao i sa centralom MBZ 300 N 24). Centrala je certifikovana u skladu sa DIN EN 12101-10 Centrala THZ Comfort ima sopstveni akumlator za napajanje izvrsnih motora sistema RWA (odimljavanja)
D175: kom | E175: 1 | G175: =F175*E175 -> 0.00
A177: 2 | C177: FT 4 A - VdS SHEV rucni javljac u aluminijumskom kucistu za aktiviranje / resetovanje centrale. Boja kucista : narandzasta, RAL 2011
D178: kom | E178: 1 | G178: =F178*E178 -> 0.00
A180: 3 | C180: LTA-24-AZ vent switch, Prekidac za upravljanje prozorima (kapcima) u dnevnom rezimu (rezim prirodne ventilacije / provetravanja); povezuje se na centralu
D181: kom | E181: 1 | G181: =F181*E181 -> 0.00
A183: 4 | C183: Kablovi izvedeni sa žilama od bakra, vatrootpornom barijerom i halogen free izolacijom koji zadržavaju funkcionalnost u slučaju požara u trajanju od 180 minuta. Kablovi se polažu na vatrootporne kablovske regale E90, vatrootporne obujmice E90, komplet sa povezivanjem na oba kraja, sledećih tipova i preseka: NHXHX FE180/E90 4x1.5mm²
D184: m | E184: 8 | G184: =F184*E184 -> 0.00
C186: UKUPNO pod F: | G186: =SUM(G174:G185) -> 0.00
B188: REKAPITULACIJA RADOVA
B190: A. GLAVNI NAPOJNI VODOVI OBJEKTA | G190: =G27 -> 0.00
B192: B. RAZVODNI ORMARI | G192: =F63 -> 0.00
B194: C. ELEKTRIČNE INSTALACIJE | G194: =F142 -> 0.00
B196: E. RASVETNA TELA | G196: =F169 -> 0.00
B198: F. SISTEM ZA OTVARANJE PROZORA ZA ODIMLJAVANJE | G198: =G186 -> 0.00
C201: I ENERGETSKE INSTALACIJE U OBJEKTU | F201: Ukupno | G201: =SUM(G189:G199) -> 0.00
C204: II TEMELJNI UZEMLJIVAČ GROMOBRANSKE INSTALACIJE I IZJEDNAČAVANJE POTENCIJALA
C206: A. TEMELJNI UZEMLJIVAČ GROMOBRANSKE INSTALACIJE
A208: 1 | C208: Isporuka materijala i izrada instalacije temeljnog uzemljivača pocinkovanom trakom Fe/Zn 25x4mm- čelična taka pocinkovana toplim posupkom. Traka se polaže zajedno sa temeljnom armaturom, za koju se vari, a varovi zaštićuju antikorozivnom bojom. Plaća se sve komplet po dužnom metru. U cenu su uračunati i ukrsni komadi.
D209: m | E209: 130 | G209: =E209*F209 -> 0.00
A211: 2 | C211: Isporuka trake Fe/Zn 25x4, polaganje horizontalno na potporama za beton po platformi, do mesta ulaska u betonski stub odnosno vertikalno kroz stub (pre nalivanja betona) do merno rastavnog spoja, sa isporukom vrata za merno-rastavni spoj i ugradnja istih Prosečna dužina spusta je 4 m.I trake Fe/Zn 20x3 za izradu spusta od merno rastavnog spoja do krova . Prosečna dužina spusta je 7 m.
D212: kom | E212: 5 | G212: =E212*F212 -> 0.00
A214: 3 | C214: Isporuka materijala i izrada izvoda od uzemljivača , za GSIP-a, pocinkovanom trakom FeZn 25x4mm, prosečne dužine 3m . Plaća se po komadu.
D215: kom | E215: 1 | G215: =E215*F215 -> 0.00
A217: 4 | C217: Isporuka materijala i izrada izvoda od uzemljivača , za uzemljenje oluka, pocinkovanom trakom FeZn 20x3mm, prosečne dužine 3m, komplet sa obujmicom za oluk , slične proizvodu ELIND Valjevo, kataloške oznakeNGO-16 , BY JUS N.B4.914. P ). Plaća se po komadu
D218: kom | E218: 2 | G218: =E218*F218 -> 0.00
A220: 4 | C220: Isporuka materijala i izrada gromobranske instalacije na krovu objekta pocinkovanom trakom Fe/Zn 20x3mm- čelična taka pocinkovana toplim postupkom . Plaća se sve komplet po dužnom metru. U cenu su uračunati i ukrsni komadi i krovni drzaci.
D221: m | E221: 150 | G221: =E221*F221 -> 0.00
A223: 5 | C223: Merenje prelaznog otpora temeljnog uzemljivača sa izdavanjem atesta.
D224: kom | E224: 1 | G224: =E224*F224 -> 0.00
C226: UKUPNO pod A: | G226: =SUM(G208:G225) -> 0.00
C229: B. IZJEDNAČAVANJE POTENCIJALA
A231: 1 | C231: Isporuka i ugradnja sabirnice za izjednačavanje potencijala SIP u objektu.
D232: kom. | E232: 1 | G232: =E232*F232 -> 0.00
A234: 2 | C234: Isporuka i polaganje provodnika N2XH -J 1x4 sa ugradnjom PS-49 kutija za lokalno izjednačenje potencijala. Kabal se polaže ispod maltera od odgovarajuće razvodne table RO do PS-49 kutije. Prosečna dužina provodnika je 9m. U cenu je uračunat kabal i PS-49 kutija.
D235: kom. | E235: 3 | G235: =E235*F235 -> 0.00
A237: 3 | C237: Isporuka i polaganje provodnika P-Y 4mm2 za lokalno izjednačenje potencijala u kupatilu povezivanjem radijatora, kade vodovodnih cevi itd. na PS-49 kutiju. Kabal se polaže ispod maltera kroz PVC crevo fi 11mm sa svim potrebnim povezivanjem sa bakarnim obujmicama.
D238: kom. | E238: 3 | G238: =E238*F238 -> 0.00
C240: UKUPNO pod B: | G240: =SUM(G230:G238) -> 0.00
B242: REKAPITULACIJA RADOVA
B244: A. TEMELJNI UZEMLJIVAČ GROMOBRANSKE INSTALACIJE | G244: =G226 -> 0
B246: B. IZJEDNAČAVANJE POTENCIJALA | G246: =G240 -> 0
C249: II TEMELJNI UZEMLJIVAČ GROMOBRANSKE INSTALACIJE I IZJEDNAČAVANJE POTENCIJALA | F249: Ukupno | G249: =SUM(G243:G247) -> 0
B254: KONAČNA REKAPITULACIJA
B256: I ENERGETSKE INSTALACIJE U OBJEKTU | G256: =G201 -> 0
B258: II TEMELJNI UZEMLJIVAČ GROMOBRANSKE INSTALACIJE I IZJEDNAČAVANJE POTENCIJALA | G258: =G249 -> 0
C261: ELEKTROENERGETSKE INSTALACIJE | F261: Ukupno | G261: =SUM(G255:G259) -> 0

Sheet V_TiS
A1: TELEKOMUNIKACIONE I SIGNALNE INSTALACIJE
A3: NAPOMENA: Ovim predmerom i predračunom predviđa se isporuka svog potrebnog materijala i opreme, ugrađivanje kako je to navedeno u pojedinim pozicijama, ispitivanje i puštanje u rad, kao i dovođenje u ispravno stanje svih oštećenih mesta na već izvedenim radovima. Sav upotrebljeni materijal mora biti prvoklasnog kvaliteta. Svi radovi moraju biti izvedeni stručnom snagom, a u potpunosti prema Srpskim propisima i važećim standardima za ovu vrstu radova. U cenu se uračunava sav navedeni materijal u pozicijama i sav sitan materijal, koji prati dotičnu poziciju, transport, kao i cenu radne snage sa svim porezima i doprinosima. Cena uključuje ispitivanje i puštanje u ispravan rad svih elemenata instalacije navedenih u pozicijama. Izvođač je dužan da radove izvrši u svemu prema priloženom tehničkom izveštaju, tehničkim uslovima, predmeru i predračunu i crtežima, da pre početka radova dobro prouči dobijenu dokumentaciju i da na vreme upozori na eventualna odstupanja od postojećih propisa. Izvođač se takodje ne oslobađa obaveze izvođenja pojedinih radova, koji su predviđeni predmerom i predračunom, a eventualno nisu napomenuti u tehničkom opisu ili ma na kom drugom prilogu ovog projekta, a što je obavezan da uradi po važećim propisima za izvodjenja instalacija za ovu vrstu objekta.
A10: RED. BR. | B10: ŠIFRA POZ. | C10: OPIS | D10: J.M. | E10: KOLIČINA | F10: JED. CENA (BEZ PDV-a) | G10: IZNOS (BEZ PDV-a)
C11: I TELEKOMUNIKACIONE INSTALACIJE
A13: 1. | C13: PRIVODNA IT INFRASTRUKTURA
A15: 1.1. | C15: Geodetesko obeležavanje trase i čišćenje od šiblja i sitnog rastinja. | D15: m | E15: 15 | G15: =E15*F15 -> 0.00
A17: 1.2. | C17: Ručni iskop rova u zemljištu III kategorije dimenzija 0,4 x 1,1 m sa pravilnim odsecanjem bočnih stranica i ravnim dnom, iskop odlagati na gradilišnu deponiju. | D17: m³ | E17: 7 | G17: =E17*F17 -> 0.00
A19: 1.3. | C19: Nabavka, isporuka i formiranje sloja peska na dnu rova za izradu posteljice za cevi, d=10 cm na dnu rova i d=10 cm iznad temena cevi. | D19: m³ | E19: 1.2 | G19: =E19*F19 -> 0.00
A21: 1.4. | C21: Nabavka, isporuka i polaganje u pripremljeni rov PE cevi Ø 110 mm. | D21: m | E21: 15 | G21: =E21*F21 -> 0.00
A23: 1.5. | C23: Zatrpavanje rova TK kanalizacije zemljom iz iskopa sa nabijanjem i polivanjem vodom. | D23: m³ | E23: 5 | G23: =E23*F23 -> 0.00
A25: 1.6. | C25: Nabavka, isporuka i nasipanje sloja šljunka d=10 cm iznad sloja peska na trasi kablova. | D25: m³ | E25: 0.6 | G25: =E25*F25 -> 0.00
A27: 1.7. | C27: Nabavka, isporuka i zatvaranje slobodnih cevi gumenim čepovima. | D27: kom | E27: 2 | G27: =E27*F27 -> 0.00
A29: 1.8. | C29: Nabavka, isporuka i polaganje upozoravajuću PVC traku, žute boje, sa tekstom "telekomunikacioni kabl" ili sl., izrađene prema PTT vesniku br. 14/1. U | D29: m | E29: 15 | G29: =E29*F29 -> 0.00
A31: 1.9. | C31: Nabavka, isporuka i postavljanje PVC štitnika za cevi u rovu. | D31: m | E31: 15 | G31: =E31*F31 -> 0.00
A33: 1.10. | C33: Utovar i odvoz viška zemlje i ostalog materijala na deponiju, udaljenost do 10 km. | D33: m³ | E33: 5 | G33: =E33*F33 -> 0.00
A35: 1.11. | C35: Ispitivanje zbijenosti rova (prelazi i na 50m trase jedno ispitivanje). | D35: m | E35: 15 | G35: =E35*F35 -> 0.00
A37: 1.12. | C37: Provera prohodnosti cevi TK kanalizacije od strane nadležnih službi. | D37: m | E37: 15 | G37: =E37*F37 -> 0.00
A39: 1.13. | C39: Sitan potrošni materijal (češalj, spojnice, čepovi i sl.) i nepredviđeni radovi. | D39: paušal | E39: 1 | G39: =E39*F39 -> 0.00
A41: 1.14. | C41: Izrada projekta izvedenog objekta (2 primerka na papiru + 1 u elektronskom obliku na CDR mediju). | D41: paušal | E41: 1 | G41: =E41*F41 -> 0.00
D43: UKUPNO: | G43: =SUM(G14:G42) -> 0.00
A45: 2. | C45: STRUKTURNI KABLOVSKI SISTEM
C47: Ovom specifikacijom predviđa se isporuka sve opreme i materijala navedenih u pozicijama i svog sitnog nespecificiranog materijala potrebnog za kompletnu izradu, ugrađivanje, ispitivanje i puštanje u rad, kao i dovođenje u ispravno-prvobitno stanje svih mesta oštećenih na već izvedenim radovima. Ranžirni i prespojni kablovi nisu predviđeni ovim projektom, iste nabavlja investitor nakon nabavke i instalacije potrebne mrežne aktivne i druge tehnološke opreme.
A49: 2.1. | C49: Glavni distrubutivni ormanBD , nazidni REK orman , osnove 600x595 mm, visine 22 U opremljen sa: - 19" nosačem sa vertikalnim kablovskim vođicama - Prednjim jednostrukim perforiranim vratima sa bravom; - Zadnjim dvostrukim perforiranim vratima sa bravom; - 1 x fiksno postolje; - set za uzemljenje; - 1 x PDU 7xC13 ili šuko 16A, za vertikalnu montažu, crna; - 1 x PDU 7xC13 ili šuko 16A, za vertikalnu montažu, crvena; - 1 x Tray - fiksni nosač aktivne opreme; - 3 x patch guide 1U za horizontalno ranžiranje;
C50: Nabavka, isporuka i montaža. | D50: kom | E50: 1 | G50: =E50*F50 -> 0.00
A52: 2.2. | C52: Patch panel za ugradnju u 19" rek orman, visine 1 HU, sa slotovima za 24x RJ-45 modula. Pozicija obuhvata:
A53: - | C53: prazan patch panel sa 24 slota za ugradnju RJ-45 modula, sa uzemljenjem i držačem kablova sa zadnje strane; sličan tipu Schneider Electric VDI6691F | D53: kom | E53: 1
A54: - | C54: modul RJ-45 Cat.6 oklopljen (shielded) za ugradnju u patch panel; sličan tipu Schneider Electric VDI7700GE | D54: kom | E54: 24
C55: Nabavka, isporuka i montaža. | D55: kom | E55: 2 | G55: =E55*F55 -> 0.00
A57: 2.3. | C57: Optički patch panel za ugradnju u 19" rek orman, visine 1 HU. Pozicija obuhvata:
A58: - | C58: izvlačivu optičku fioku sa 12 slotova za montažu SC duplex adaptera; sličan tipu Schneider Electric VDI96722 | D58: kom | E58: 1
A59: - | C59: kasetu za splajsovanje sa držačem za 12 splajs protektora; Schneider Electric VDIF09022x | D59: kom | E59: 1
A60: - | C60: SC monomodni duplex adapter; sličan tipu Schneider Electric. | D60: kom | E60: 6
C61: Nabavka, isporuka i montaža. | D61: kom | E61: 1 | G61: =E61*F61 -> 0.00
A63: 2.4. | C63: Telekomunikaciona utičnica (za WI-FI) sa 1x RJ-45 modula za uzidnu (ugradnu) montažu. Pozicija obuhvata:
A64: - | C64: monoblok kutiju dimenzija 65 x 65 x 36 mm za uzidnu montažu sa dekorativnim ramom (tip Schneider Electric Unica MGU22.302.18 ili odgovarajući) | D64: kom | E64: 1
A65: - | C65: 2M dekorativni nosač sa 1 slot za montažu RJ-45 modula (tip Schneider Electric Unica MGU9.460.18 ili odgovarajući) | D65: kom | E65: 1
A66: - | C66: modul RJ-45 Cat.6A oklopljen (shielded) za ugradnju u utičnicu (tip Schneider Electric VDIB1771X ili odgovarajući) | D66: kom | E66: 1
C67: Nabavka, isporuka, montaža i povezivanje na kablovsku instalaciju. | D67: kom | E67: 4 | G67: =E67*F67 -> 0.00
A69: 2.5. | C69: Telekomunikaciona utičnica sa 2 x RJ-45 modula za uzidnu (ugradnu) montažu. Pozicija obuhvata:
A70: - | C70: monoblok kutiju dimenzija 65 x 65 x 36 mm za uzidnu montažu sa dekorativnim ramom (tip Schneider Electric Unica MGU22.302.18 ili odgovarajući) | D70: kom | E70: 1
A71: - | C71: 2M dekorativni nosač sa 2 slota za montažu RJ-45 modula (tip Schneider Electric Unica MGU9.461.18 ili odgovarajući) | D71: kom | E71: 1
A72: - | C72: modul RJ-45 Cat.6A oklopljen (shielded) za ugradnju u utičnicu (tip Schneider Electric VDIB1771X ili odgovarajući) | D72: kom | E72: 2
C73: Nabavka, isporuka, montaža i povezivanje na kablovsku instalaciju. | D73: kom | E73: 13 | G73: =E73*F73 -> 0.00
A75: 2.6. | C75: Telekomunikaciona utičnica sa 1 x RJ-45 modula za uzidnu (ugradnu) montažu. Pozicija obuhvata:
A76: - | C76: monoblok kutiju dimenzija 65 x 65 x 36 mm za uzidnu montažu sa dekorativnim ramom (tip Schneider Electric Unica MGU22.302.18 ili odgovarajući) | D76: kom | E76: 1
A77: - | C77: 2M dekorativni nosač sa 1 slot za montažu RJ-45 modula (tip Schneider Electric Unica MGU9.461.18 ili odgovarajući) | D77: kom | E77: 1
A78: - | C78: modul RJ-45 Cat.6A oklopljen (shielded) za ugradnju u utičnicu (tip Schneider Electric VDIB1771X ili odgovarajući) | D78: kom | E78: 1
C79: Nabavka, isporuka, montaža i povezivanje na kablovsku instalaciju. | D79: kom | E79: 5 | G79: =E79*F79 -> 0.00
A81: 2.7. | C81: S/FTP četvoroparični kabl, kategorije 7, 100 ohm, 23AWG, ekvivalentnih karakteristika tipa Cat. 7 4x2x23/1 AWG S/FTP FR-LSZH (9928001xxx) Teldor.
C82: Nabavka, isporuka i polaganje kablova na nosače kablova ili u savitljivim instalacionim cevima. | D82: m | E82: 790 | G82: =E82*F82 -> 0.00
A84: 2.8. | C84: Instalacione cevi potrebnog prečnika, "halogen-free".
C85: Nabavka, isporuka i polaganje . | D85: m | E85: 790 | G85: =E85*F85 -> 0.00
A87: 2.9. | C87: Sitan instalacioni i montažni materijal; dodatni sitni građevinski i stolarski radovi. | D87: paušal | E87: 1 | G87: =E87*F87 -> 0.00
A89: 2.10. | C89: Završno ispitivanje, testiranje sistema, izrada projekta izvedenog objekta (3 primerka na papiru + 3 u elektronskom obliku na CDR mediju), obuka korisnika, puštanje u ispravan rad i predaja tehničke dokumentacije. | D89: paušal | E89: 1 | G89: =E89*F89 -> 0.00
D91: UKUPNO: | G91: =SUM(G48:G90) -> 0.00
A93: 3 | C93: SISTEM VIDEO NADZORA
C95: NAPOMENA: - Projektom je predviđen IP CCTV sistem.Kao koncentracija sistema video nadzora, predviđeni su 19“ REK ormani strukturnog kablovskog sistema Ovoim predmerom predviđeno je samo postavljanje potrebne instalacije sistema, dok je postavljanje aktivne opreme (kamere, snimači i sl.) obaveza investitora . Potrebni prespojni kablovi na strani REK ormana i na strani kamere nisu predmet ovog projekta i biće nabavlјani zajedno sa aktivnom opremom sistema video nadzora.
A97: 3.1. | C97: Patch panel za ugradnju u 19" rek orman, visine 1 HU, sa slotovima za 24x RJ-45 modula. Pozicija obuhvata:
A98: - | C98: prazan patch panel sa 24 slota za ugradnju RJ-45 modula, sa uzemljenjem i držačem kablova sa zadnje strane; sličan tipu Schneider Electric VDI6691F | D98: kom | E98: 1
A99: - | C99: modul RJ-45 Cat.6 oklopljen (shielded) za ugradnju u patch panel; sličan tipu Schneider Electric VDI7700GE | D99: kom | E99: 24
C100: Nabavka, isporuka i montaža. | D100: kom | E100: 1 | G100: =E100*F100 -> 0.00
A102: 3.2. | C102: Isporuka, montaža i povezivanje računarsko - telefonske utičnice sa 1 modul RJ-45 S/FTP Cat.6a, za montažu na zid, u kompletu sa nadgradnom kutijom i setom za montažu modula. | D102: kom | E102: 10 | G102: =E102*F102 -> 0.00
A104: 3.3. | C104: S/FTP četvoroparični kabl, kategorije 7, 100 ohm, 23AWG, ekvivalentnih karakteristika tipa Cat. 7 4x2x23/1 AWG S/FTP FR-LSZH (9928001xxx) Teldor.
C105: Nabavka, isporuka i polaganje kablova na nosače kablova ili u savitljivim instalacionim cevima. | D105: m | E105: 240 | G105: =E105*F105 -> 0.00
A107: 3.4. | C107: Testiranje i merenje instalacionog kabla strukturnog kablovskog sistema sa izradom protokola merenja, za svaku liniju. | D107: kom | E107: 10 | G107: =E107*F107 -> 0.00
A109: 3.5. | C109: Instalacione cevi potrebnog prečnika, "halogen-free".
C110: Nabavka, isporuka i polaganje . | D110: m | E110: 240 | G110: =E110*F110 -> 0.00
A112: 3.6. | C112: Sitan instalacioni i montažni materijal; dodatni sitni građevinski i stolarski radovi. | D112: paušal | E112: 1 | G112: =E112*F112 -> 0.00
A114: 3.7. | C114: Završno ispitivanje, testiranje sistema, izrada projekta izvedenog objekta (3 primerka na papiru + 3 u elektronskom obliku na CDR mediju), obuka korisnika, puštanje u ispravan rad i predaja tehničke dokumentacije. | D114: paušal | E114: 1 | G114: =E114*F114 -> 0.00
D116: UKUPNO: | G116: =SUM(G94:G115) -> 0.00
A118: 4 | C118: TV INSTALACIJE U OBJEKTU
C120: Sva kablovska instalacija se zavrsava u predvidjenom RACK ormanu u prizemlju, u kome je predvidjen prostor za montazu aktivne opreme provajdera kablovske televizije.
A122: 4.1. | C122: TV utičnica sa 1 x TV modulom za uzidnu (ugradnu) montažu. Pozicija obuhvata:
A123: - | C123: monoblok kutiju dimenzija 65 x 65 x 36 mm za uzidnu montažu sa dekorativnim ramom (tip Schneider Electric Unica MGU22.302.18 ili odgovarajući) | D123: kom | E123: 1
A124: - | C124: 2M dekorativni nosač sa 2 slota za montažu TV modula (tip Schneider Electric Unica MGU9.461.18 ili odgovarajući) | D124: kom | E124: 1
A125: - | C125: modul TV za ugradnju u utičnicu | D125: kom | E125: 1
C126: Nabavka, isporuka, montaža i povezivanje na kablovsku instalaciju. | D126: kom | E126: 5 | G126: =E126*F126 -> 0.00
A128: 4.2. | C128: Nabavka i postavljanje koaksijalnog kabla tipa HF u cevima odgovarajućeg prečnika , provodnici se vode delom u zidu ispod maltera, delom iznad spustenog plafona na regalima ili obujmicama: '- RG 6 HF, 75Ω: | D128: m | E128: 120 | G128: =E128*F128 -> 0.00
A130: 4.3. | C130: Instalacione cevi - Ø16/11mm: Nabavka, isporuka i polaganje, obeležavanje trasa, dubljenje kanala i opravka zida do završnih radova | D130: m | E130: 90 | G130: =E130*F130 -> 0.00
A132: 4.4. | C132: Sitan potrošni materijal i nepredvidjeni troškovi. | D132: paušal | E132: 1 | G132: =E132*F132 -> 0.00
A134: 4.5. | C134: Završno ispitivanje, testiranje sistema, izrada projekta izvedenog objekta (3 primerka na papiru + 3 u elektronskom obliku na CDR mediju), obuka korisnika, puštanje u ispravan rad i predaja tehničke dokumentacije. | D134: paušal | E134: 1 | G134: =E134*F134 -> 0.00
D136: UKUPNO: | G136: =SUM(G121:G135) -> 0.00
A138: 5 | C138: PROTIVPOŽARNA MASA
A139: 5.1 | C139: Zaptivanje kablovskih prodora kroz požarne sektore vatrootpornom masom. Masa mora da poseduje: Sertifikat o otpornosti prema požaru negorivih materijala za zaptivanje prodora instalacija na granici požarnog sektora u skladu sa normativom DIN 4102 deo 9- Fire behaviour of building materials and elements; seals for cable penetrations; concepts, requirements and testing., odnosno DIN 4102 deo 11- Fire behaviour of building materials and building components; pipe encasements, pipe bushings, service shafts and ducts, and barriers across inspection openings; terminology, requirements and testing, a na osnovu Pravilnika o obaveznom atestiranju elemenata tipskih građevinskih konstrukcija na otpornost prema požaru i o uslovima koje moraju ispunjavati organizacije udruženog rada ovlašćene za testiranje tih proizvoda (Pravilnik o obaveznom atestiranju „Sl. list SFRJ“ br. 24/90) i standardima SRPS ISO 834 (1994) i SRPS U.J1.090 (1986) izdatim od strane imenovanog tela. | D139: pausal | E139: 1 | G139: =E139*F139 -> 0.00
D142: UKUPNO: | G142: =SUM(G139:G141) -> 0.00
B145: REKAPITULACIJA RADOVA
B147: 1 PRIVODNA IT INFRASTRUKTURA | G147: =G43 -> 0.00
B149: 2 STRUKTURNI KABLOVSKI SISTEMI | G149: =G91 -> 0.00
B151: 3 SISTEM VIDEO NADZORA | G151: =G116 -> 0.00
B153: 4 TV INSTALACIJE U OBJEKTU | G153: =G136 -> 0.00
B155: 5 PROTIVPOŽARNA MASA | G155: =G142 -> 0.00
C158: I TELEKOMUNIKACIONE INSTALACIJE | F158: Ukupno | G158: =SUM(G146:G156) -> 0.00
C162: II SIGNALNE INSTALACIJE - SISTEM ZA DOJAVU POŽARA
A164: Ovom specifikacijom predviđa se isporuka sve opreme i materijala navedenih u pozicijama i sveg sitnog nespecificiranog materijala potrebnog za kompletnu izradu, ugrađivanje, ispitivanje i puštanje u rad, kao i dovođjenje u ispravno-prvobitno stanje svih mesta oštećenih na već izvedenim radovima. U cenu se uračunava cena sve navedene opreme i materijala u pozicijama i sav sitan nespecificirani materijal, transport i cena radne snage i svi porezi i doprinosi na materijal i rad. Cena uključuje i izradu sve eventualno potrebne radioničke dokumentacije, ispitivanja i puštanje u ispravan rad svih postrojenja i instalacija navedenih u pozicijama, kao i izdavanje potrebnih atesta i sertifikata. NAPOMENA: Svi kablovi i pasivne komponente za vođenje kablova izrađene od plastike a koje se ne ugrađuju u zid pod malter moraju biti u HALLOGEN FREE izvedbi
A166: 1 | C166: Specifikacija opreme
A168: 1.1 | C168: Analogno-adresabilna mikroprocesorski kontrolisana centrala sa 1 petljom, kapaciteta 250 adresabilnih elemenata u petlji, maksimalna dužina petlje 2000m, mogućnost umrežavanja do 32 centrale, 40x4 karaktera displej, LED indikacija 20 zona, 2 relejna izlaza na centrali, auto-search i auto-check funkcije, detekcija dvostruke adrese, memorija 4,000 događaja, do 50 adresabilnih sirena po petlji, 2 nadzirana sirenska izlaza, dnevno-noćni režim rada, podešavanje osetljivosti detektora, USB port za konfigurisanje centrala, dimenzije 443 mm x 268 mm x 109 mm, poseduje EN 54-2, 4 standard. U kućištu centale ima mesta za smeštanje dve akumulatorske baterije 12V, 7.5Ah. Tip DET-CAD-150-1 Detnov, Španija. Isporučilac opreme Almaks Beograd. | D168: kom | E168: 1 | G168: =E168*F168 -> 0.00
A170: 1.2 | C170: Orman za akumulatorske baterije i adresabilne module sa pratecim elementima, relei, uvodnice. | D170: kom | E170: 1 | G170: =E170*F170 -> 0.00
A172: 1.3 | C172: Akumulator 12V, 18Ah za adresibilnu centralu. | D172: kom | E172: 2 | G172: =E172*F172 -> 0.00
A174: 1.4 | C174: Analogno-adresabilni optički detektor, kompenzacija uticaja prašine,radni napon 22-38V DC, struja u alarmnom stanju 11mA, u mirnom stanju 300µA.Pokriva prostor od 60m², u skladu sa EN54-7. Tip DET-DOD-220A Detnov, Španija. | D174: kom | E174: 25 | G174: =E174*F174 -> 0.00
A176: 1.5 | C176: Standardna baza za montažu adresabilnih detektora. Tip DET-Z-200 Detnov, Španija. | D176: kom | E176: 25 | G176: =E176*F176 -> 0.00
A178: 1.6 | C178: Adresabilni ručni javljač požara, resetujući, radni napon 22-38V DC, struja u mirnom stanju 300µA, struja u alarmnom stanju 3mA, u skladu sa standardom EN54-11, stepen zaštite IP 40. Tip DET-MAD-450 Detnov, Španija. | D178: kom | E178: 5 | G178: =E178*F178 -> 0.00
A180: 1.7 | C180: Konvencionalna protivpožarna sirena za unutrašnju montažu, selekcija 3 tona, niske potrošnje (7mA), 87.5dB/1m, napajanje 20Vdc-28Vdc, u saglasnosti sa EN 54-3 standardom. Tip DET-SCD100 Detnov, Španija. | D180: kom | E180: 4 | G180: =E180*F180 -> 0.00
A182: 1.8 | C182: Telefonski GSM dojavni automat. Tip PVOX-OUT ili sličan. Isporuka,montaža i povezivanje. | D182: kom | E182: 1 | G182: =E182*F182 -> 0.00
D184: UKUPNO: | G184: =SUM(G167:G183) -> 0.00
A186: 2 | C186: Specifikacija instalacionog materijala
A188: 2.1 | C188: Isporuka i ugradnja Instalacionog kabla tipa JH(St)H 2x2x0,8mm | D188: m | E188: 270 | G188: =E188*F188 -> 0.00
A190: 2.2 | C190: Isporuka i ugradnja vatrootpornog instalacionog kabla tipa JE-H(St)H 1x2x0.8mm FE180/E30 za povezivanje sirena međusobno i sa centralom. | D190: m | E190: 50 | G190: =E190*F190 -> 0.00
A192: 2.3 | C192: Isporuka i ugradnja vatrootpornog instalacionog kabla tipa NHXHX Fe180 E30 2x1,5mm2 za povezivanje izvršnih funkcija. | D192: m | E192: 25 | G192: =E192*F192 -> 0.00
A194: 2.4 | C194: Isporuka i ugradnja pod malter, nazidno ili u spušteni plafon tvrdih HF cevi odgovarajućeg prečnika. | D194: m | E194: 270 | G194: =E194*F194 -> 0.00
A196: 2.5 | C196: Obujmica sa funkcijom u požaru E90 u kompletu sa ankerom, isprava o usaglašenosti sa LVD direktivom izdata od strane imenovanog tela u RS, isprava o usaglašenosti sa normativom DIN4102-12 | D196: kom | E196: 75 | G196: =E196*F196 -> 0.00
A198: 2.6 | C198: Isporuka i ugradnja kabla N2HX-J 3x1.5 mm2 za napajanje centrale. | D198: m | E198: 10 | G198: =E198*F198 -> 0.00
A200: 2.7 | C200: Zaptivanje kablovskih prodora kroz zidove vatrootpornom masom. Masa mora da poseduje: Sertifikat o otpornosti prema požaru negorivih materijala za zaptivanje prodora instalacija na granici požarnog sektora u skladu sa normativom DIN 4102 deo 9- Fire behaviour of building materials and elements; seals for cable penetrations; concepts, requirements and testing., odnosno DIN 4102 deo 11- Fire behaviour of building materials and building components; pipe encasements, pipe bushings, service shafts and ducts, and barriers across inspection openings; terminology, requirements and testing, a na osnovu Pravilnika o obaveznom atestiranju elemenata tipskih građevinskih konstrukcija na otpornost prema požaru i o uslovima koje moraju ispunjavati organizacije udruženog rada ovlašćene za testiranje tih proizvoda (Pravilnik o obaveznom atestiranju „Sl. list SFRJ“ br. 24/90) i standardima SRPS ISO 834 (1994) i SRPS U.J1.090 (1986) izdatim od strane imenovanog tela. | D200: paušal | E200: 1 | G200: =E200*F200 -> 0.00
A202: 2.8 | C202: Sitan i nestandardni instalacioni materijal - paušalno | D202: paušal | E202: 1 | G202: =E202*F202 -> 0.00
D204: UKUPNO: | G204: =SUM(G187:G203) -> 0.00
A206: 3 | C206: Specifikacija radova i ostalih troškova
A208: 3.1 | C208: Montaža opreme na postavljenu i obeleženu instalaciju. | D208: kpl. | E208: 1 | G208: =E208*F208 -> 0.00
A210: 3.2 | C210: Stručni nadzor nad izvođenjem radova od strane licenciranog inženjera (potrebno uverenje o položenom stručnom ispitu iz oblasti zaštite od požara). | D210: kpl. | E210: 1 | G210: =E210*F210 -> 0.00
A212: 3.3 | C212: Podešavanje uređaja i opreme, povezivanje centralnih uređaja, testiranje i programiranje, puštanje u rad, provera funkcionalne ispravnosti sistema i obuka korisnika, izrada uputstva za rukovanje. | D212: kpl. | E212: 1 | G212: =E212*F212 -> 0.00
A214: 3.4 | C214: Prvo kontrolisanje sistema, eventualne korekcije sistema. | D214: kpl. | E214: 1 | G214: =E214*F214 -> 0.00
A216: 3.5 | C216: Izrada projekta izvedenog objekta. | D216: paušal | E216: 1 | G216: =E216*F216 -> 0.00
A218: 3.6 | C218: Završna električna merenja na kablovima (otpor izolacije, preslušavanje i ispitivanje parica na prekid i kratak spoj). | D218: kpl. | E218: 1 | G218: =E218*F218 -> 0.00
D220: UKUPNO: | G220: =SUM(G203:G219) -> 0.00
B223: REKAPITULACIJA RADOVA
B225: 1 SPECIFIKACIJA OPREME
B227: 2 SPECIFIKACIJA INSTALACIONOG MATERIJALA
B229: 3 SPECIFIKACIJA RADOVA I OSTALIH TROŠKOVA
C231: II SIGNALNE INSTALACIJE - SISTEM ZA DOJAVU POŽARA | F231: Ukupno | G231: =SUM(G224:G230) -> 0.00
B236: KONAČNA REKAPITULACIJA
B238: I TELEKOMUNIKACIONE INSTALACIJE | G238: =G158 -> 0.00
B240: II SIGNALNE INSTALACIJE - SISTEM ZA DOJAVU POŽARA | G240: =G231 -> 0.00
C243: TELEKOMUNIKACIONE I SIGNALNE INSTALACIJE | F243: Ukupno | G243: =SUM(G237:G241) -> 0.00

Sheet VI_MASINSKE
B2: MAŠINSKE INSTALACIJE
A4: RED. BR. | B4: ŠIFRA POZ. | C4: OPIS | D4: J.M. | E4: KOLIČINA | F4: JED. CENA (BEZ PDV-a) | G4: IZNOS (BEZ PDV-a)
B5: I | C5: CENTRALNO GREJANJE
A7: 1 | C7: Vaillant ecoTEC plus VU 486/5-5 Gasni kondenzacioni kotao | D7: kom | E7: 1.00 | G7: =E7*F7 -> 0
A8: 2 | C8: Vaillant horizontalni dimovodni komplet za kondenzacione kotlove ø80/125 | D8: kom | E8: 1.00 | G8: =E8*F8 -> 0
A9: 3 | C9: Vaillant sensoHOME VRT 380 Digitalni modulacioni sobni termostat | D9: kom | E9: 1.00 | G9: =E9*F9 -> 0
A10: 4 | C10: Ormarić za smeštaj kolektorskih setova, sa bravicom, 800x400x110 | D10: kom | E10: 3.00 | G10: =E10*F10 -> 0
A11: 5 | C11: Kolektorski set 5/4", komplet s azavršnim T-komadom, sa odzračnim lončetom i slavinom za PIP, sa držačima, sa priključcima 3/4"euroconus, i to:
C12: 9 krugova | D12: cpl. | E12: 2.00 | G12: =E12*F12 -> 0
C13: 5 krugova | D13: cpl. | E13: 1.00 | G13: =E13*F13 -> 0
A14: 6 | C14: Kuglasta slavina, navojna, holenderska 5/4" | D14: kom | E14: 6.00 | G14: =E14*F14 -> 0
A15: 7 | C15: Kosi hvatač nečistoća 5/4" | D15: kom | E15: 1.00 | G15: =E15*F15 -> 0
A16: 8 | C16: Kosi balansni ventil, sa holenderskom, rastavljivom vezom
C17: 5/4" | D17: kom | E17: 1.00 | G17: =E17*F17 -> 0
C18: 1" | D18: kom | E18: 1.00 | G18: 0
C19: 3/4" | D19: kom | E19: 1.00 | G19: 0
A20: 9 | C20: Slavina za PIP, sa kapom i lancem 1/2" | D20: kom | E20: 2.00 | G20: 0
A21: 10 | C21: Aluminijumswki člankasti radijator Global VOX H600 | D21: čl. | E21: 297.00 | G21: 0
A22: 11 | C22: Aluminijumski radijatorski set (čepovi, redukcije, ručni odzračni ventil). | D22: cpl. | E22: 23.00 | G22: 0
A23: 12 | C23: Set za nošenje i oslanjanje radijatora (Radijatorske konzole, držači i odstojnici) | D23: cpl. | E23: 23.00 | G23: 0
A24: 13 | C24: Termostatski radijatorski set 1/2" (Termostatski radijatorski ventil, radijatorski navijak i termoglava) | D24: cpl. | E24: 23.00 | G24: 0
A25: 14 | C25: Prelaz sa Al-pex ø16x2 - 3/4" Euroconus | D25: kom | E25: 46.00 | G25: 0
A26: 15 | C26: Prelaz sa Al-pex ø16x2 - 1/2" SN | D26: kom | E26: 46.00 | G26: 0
A27: 16 | C27: Cu cevi, sledećih diminzija:
C28: ø42x1,5mm | D28: m | E28: 10.00 | G28: =E28*F28 -> 0
C29: ø35x1,5mm | D29: m | E29: 10.00 | G29: =E29*F29 -> 0
C30: ø28x1,5mm | D30: m | E30: 5.00 | G30: =E30*F30 -> 0
C31: ø22x1mm | D31: m | E31: 5.00 | G31: =E31*F31 -> 0
A32: 17 | C32: Za Cu i MS fiting, disugas i žicu, šelne, konzole, oslonce, spojni i zaptivni materijal, uzima se 50% od vrednosti pozicije cevi. | D32: % | E32: 0.50 | F32: =G28+G29+G30+G31 -> 0.00 | G32: =E32*F32 -> 0
A33: 18 | C33: Termičak izolacija bakarnih cevi, sunđerastom cevnom izolacijom debljine 9mm
C34: ø42x9mm | D34: m | E34: 10.00 | G34: =E34*F34 -> 0
C35: ø35x9mm | D35: m | E35: 10.00 | G35: 0
C36: ø28x9mm | D36: m | E36: 5.00 | G36: 0
C37: ø22x9mm | D37: m | E37: 5.00 | G37: 0
A38: 19 | C38: Predizolovana Al pex cev ø16x2mm | D38: m | E38: 700.00 | G38: 0
A39: 20 | C39: Držači cevi i ostali potrošni materijal i oprema za postavljanje cevne mreže, uzima se 50% od vrednosti pozicije cevi. | D39: % | E39: 0.50 | F39: =G38 -> 0.00 | G39: 0
B41: UKUPNO CENTRALNO GREJANJE | F41: Ukupno din. | G41: =SUM(G6:G40) -> 0
B44: II | C44: KLIMATIZACIJA - VRF SISTEM
A46: 1 | C46: Toshiba MCY-MHP0604HS8-E Spoljna jedinica Qgr: 18kW Qhl: 15,5kW | D46: kom | E46: 2.00 | G46: =E46*F46 -> 0
A47: 2 | C47: Toshiba MMK-UP0071HP-E Unutrašnja jedinica Qgr: 2,5kW Qhl: 2,2kW | D47: kom | E47: 7.00 | G47: 0
A48: 3 | C48: Toshiba MMK-UP0091HP-E Unutrašnja jedinica Qgr: 3,2kW Qhl: 2,8kW | D48: kom | E48: 5.00 | G48: 0
A49: 4 | C49: Toshiba RBM-BY55E Y-Račve (par za tečnu i gasnu fazu) za grananje cevovoda (<18kW) | D49: kom | E49: 10.00 | G49: 0
A50: 5 | C50: Toshiba RBC-AMSU51-ES Žičani daljinski upravljač za komforno rukovanje sa displejom koji ima pozadinsko osvetljenje | D50: kom | E50: 12.00 | G50: 0
A51: 6 | C51: Komunikacioni kabl | D51: m | E51: 180.00 | G51: 0
A52: 7 | C52: Bakarne cevi, predizolovane termičkom izolacijom sa parnom branom, sledećih dimenzija:
C53: ø6,35mm (1/4") | D53: m | E53: 50.00 | G53: =E53*F53 -> 0
C54: ø9,52mm (3/8") | D54: m | E54: 130.00 | G54: 0
C55: ø12,7mm (1/2") | D55: m | E55: 20.00 | G55: 0
C56: ø15,88mm (5/8") | D56: m | E56: 40.00 | G56: 0
C57: ø19,05mm (3/4") | D57: m | E57: 20.00 | G57: 0
A58: 8 | C58: Za cu fiting, spojni i zaptivni materijal, šelne, konzole i oslonce, uzima se 30% od vrednosti pozicije cevi. | D58: % | E58: 0.30 | F58: =G53+G54+G55+G56+G57 -> 0.00 | G58: 0
A59: 9 | C59: Dopunjavanje sistem afreonom R410A | D59: kg | E59: 10.00 | G59: 0
A60: 10 | C60: Izrada konzola za nošenje spoljašnjih jedinica klima, od čeličnih profila, očišćeno, minizirano i obojeno završnom bojuom. | D60: kg | E60: 80.00 | G60: 0
B62: UKUPNO KLIMATIZACIJA - VRF SISTEM | F62: Ukupno din. | G62: =SUM(G45:G61) -> 0
B65: III | C65: VENTILACIJA
A67: 1 | C67: Kanalski ventilator S&P VENT 160NK | D67: kom | E67: 1.00 | G67: =E67*F67 -> 0
A68: 2 | C68: Ventilacioni ventil VV100 | D68: kom | E68: 7.00 | G68: =E68*F68 -> 0
A69: 3 | C69: Spoljna samopadajuća rešetka 400x400mm | D69: kom | E69: 1.00 | G69: =E69*F69 -> 0
A70: 4 | C70: Ventilacioni spiro kanali, faznski komadi, oslonci i nosači. | D70: kg | E70: 120.00 | G70: =E70*F70 -> 0
B72: UKUPNO VENTILACIJA | F72: Ukupno din. | G72: =SUM(G66:G71) -> 0
B75: IV | C75: OSTALI RADOVI
A77: 1 | C77: Manji građevinski radovi u vidu bušenja otvora za prolaz cevi, štemovanja zidova za smeštaj ormarića i sl., izrada privremene zaštita izvedenih instalacija i sl. | D77: paušal | E77: 1.00 | G77: =E77*F77 -> 0
A78: 2 | C78: Ispitivanja i merenja • Ispitivanje UGI na čvrstoću i nepropusnost • Ispitivanje toplovodne instalacije na hladni hidraulički pritisak • Ispitivanje freonskih instalacija • Topla i hladna proba Predvideti sva potrebna parcijalna ispitivanja, merenja i dokazivanja parametara. Nakon izvršenih merenja i ispitivanja izraditi odgovarajuće zapisnike koje overavaju Odgovorni izvođač radova i Stručni nadzor. | D78: paušal | E78: 1.00 | G78: =E78*F78 -> 0
A79: 3 | C79: Priprema atestno tehničke dokumentacije, izrada Projekta izvedenog objekta, učestvovanje u tehničkom prijemu. | D79: paušal | E79: 1.00 | G79: =E79*F79 -> 0
B81: UKUPNO OSTALI RADOVI | F81: Ukupno din. | G81: =SUM(G76:G80) -> 0
C84: REKAPITULACIJA :
C86: I CENTRALNO GREJANJE | G86: =G41 -> 0.00
C88: II KLIMATIZACIJA - VRF SISTEM | G88: =G62 -> 0.00
C90: III VENTILACIJA | G90: =G72 -> 0.00
C92: IV OSTALI RADOVI | G92: =G81 -> 0.00
B96: MAŠINSKE INSTALACIJE | F96: Ukupno | G96: =SUM(G85:G93) -> 0.00

Sheet VII_PPZ
B2: VII OPREMA I SREDSTAVA ZA ZAŠTITU OD POŽARA
A4: RED. BR. | B4: ŠIFRA POZ. | C4: OPIS | D4: J.M. | E4: KOLIČINA | F4: JED. CENA (BEZ PDV-a) | G4: IZNOS (BEZ PDV-a)
B6: A | C6: Ručni i prevozni aparati za gašenje požara
A7: 1 | C7: Ručni protivpožarni aparat za gašanje prahom pod stalnim pritiskom azota, oznaka S9 | D7: kom | E7: 7.00 | G7: =E7*F7 -> 0
A8: 2 | C8: Ručni protivpožarni aparat za gašenje ugljendioksidom, oznaka CO2-5 | D8: kom | E8: 2.00 | G8: =E8*F8 -> 0
B10: A UKUPNO RUČNI I PREVOZNI APARATI ZA GAŠENJE POŽARA | F10: Ukupno | G10: =SUM(G7:G8) -> 0
B13: B | C13: Table upozorenja i obaveštenja
A14: 1 | B14: T-1 | C14: Postupak u slučaju požara | D14: kom | E14: 2.00 | G14: =E14*F14 -> 0
A15: 2 | B15: T-2 | C15: Strogo zabranjeno pušenje i pristup otvorenim plamenom | D15: kom | E15: 2.00 | G15: =E15*F15 -> 0
A16: 3 | B16: T-3 | C16: Ručni vatrogasni aparat S-9 (uputstvo za rukovanje) 30 x 50 cm | D16: kom | E16: 5.00 | G16: =E16*F16 -> 0
A17: 4 | B17: T-4 | C17: Ručni vatrogasni aparat CO2-5 (uputstvo za rukovanje) 30 x 50 cm | D17: kom | E17: 2.00 | G17: =E17*F17 -> 0
B19: B UKUPNO TABLE UPOZORENJA I OBAVEŠTENJA | G19: =SUM(G14:G17) -> 0
B22: UKUPNO OPREME ZA ZAŠTITU OD POŽARA | F22: Ukupno | G22: =G10+G19 -> 0

Sheet SPOLJNO UREĐENJE
B2: SPOLJNE UREĐENJE
A4: RED. BR. | B4: ŠIFRA POZ. | C4: OPIS | D4: J.M. | E4: KOLIČINA | F4: JED. CENA (BEZ PDV-a) | G4: IZNOS (BEZ PDV-a)
B6: A | C6: RADOVI NA POPLOČAVANJU
A7: 1 | C7: Parterno popločanje, behaton pločama, navaka materijala, sa svim potrebnim predradnjama, na pripremljenoj podlozi. | D7: m2 | E7: 215 | G7: =E7*F7 -> 0.00
A9: 2 | C9: Nabavka materijala i oblaganje stepeništa (sa čelima) pločama paljenog granita. | D9: m1 | E9: 37 | G9: =E9*F9 -> 0.00
C11: UKUPNO RADOVI NA POPLOČAVANJU | G11: =SUM(G7:G9) -> 0.00
B13: B | C13: HORTIKULTURNI RADOVI
A14: 1 | C14: Izrada travnjaka, na pripremljenoj podlozi, sa svim potrebnim predradnjama. | D14: m2 | E14: 1200 | G14: =E14*F14 -> 0.00
A16: 2 | C16: Nabavka sadnica i sadnja "Lalinog drveta" sa svim potrebnim predradnjama. | D16: kom | E16: 2 | G16: =E16*F16 -> 0.00
A18: 3 | C18: Nabavka sadnica i sadnja "Crvenog javora" sa svim potrebnim predradnjama. | D18: kom | E18: 3 | G18: =E18*F18 -> 0.00
A20: 4 | C20: Nabavka sadnica i sadnja "Japanske trešnje" sa svim potrebnim predradnjama. | D20: kom | E20: 1 | G20: =E20*F20 -> 0.00
A22: 5 | C22: Nabavka sadnica i sadnja"Stubastog graba" sa svim potrebnim predradnjama. | D22: kom | E22: 13 | G22: =E22*F22 -> 0.00
A24: 6 | C24: Nabavka sadnica i sadnja "Tise" sa svim potrebnim predradnjama. | D24: kom | E24: 8 | G24: =E24*F24 -> 0.00
A26: 7 | C26: Nabavka sadnica i sadnja "Običnog čempresa" sa svim potrebnim predradnjama. | D26: kom | E26: 8 | G26: =E26*F26 -> 0.00
A28: 8 | C28: Nabavka sadnica i sadnja "Japanske kurike" sa svim potrebnim predradnjama. | D28: kom | E28: 10 | G28: =E28*F28 -> 0.00
A30: 9 | C30: Nabavka sadnica i sadnja "Lovor višnje" sa svim potrebnim predradnjama. | D30: kom | E30: 5 | G30: =E30*F30 -> 0.00
A32: 10 | C32: Nabavka sadnica i sadnja "Spiraea bumalda" sa svim potrebnim predradnjama. | D32: kom | E32: 20 | G32: =E32*F32 -> 0.00
A34: 11 | C34: Nabavka sadnica i sadnja "Tumbergove žutike" sa svim potrebnim predradnjama. | D34: kom | E34: 20 | G34: =E34*F34 -> 0.00
A36: 12 | C36: Nabavka sadnica i sadnja "Ruže Kindertag" sa svim potrebnim predradnjama. | D36: kom | E36: 50 | G36: =E36*F36 -> 0.00
C38: UKUPNO HORTIKULTURNI RADOVI | G38: =SUM(G14:G37) -> 0.00
B41: UKUPNO SPOLJNO UREĐENJE (A + B) | F41: Ukupno | G41: =G11+G38 -> 0.00

Sheet REKAPITULACIJA
C2: R E K A P I T U L A C I J A
C4: PRIPREMNO ZAVRŠNI RADOVI | F4: RSD | G4: ='0_PRIPREMNO_ZAVRSNI'!F19 -> 0.00
C6: GRAĐEVINSKI I GRAĐEVINSKO-ZANATSKI RADOVI | F6: RSD | G6: =I_GRAĐEVINSKI_GZ!G389 -> 0.00
C8: VODOVOD I KANALIZACIJA | F8: RSD | G8: =II_VIK!G373 -> 0.00
C10: ELEKTROENERGETSKE INSTALACIJE | F10: RSD | G10: =III_EE!G261 -> 0.00
C12: TELEKOMUNIKACIONE I SIGNALNE INSTALACIJE | F12: RSD | G12: =V_TiS!G243 -> 0.00
C14: MAŠINSKE INSTALACIJE | F14: RSD | G14: =VI_MASINSKE!G96 -> 0.00
C16: OPREMA I SREDSTVA ZA ZAŠTITU OD POŽARA | F16: RSD | G16: =VII_PPZ!G22 -> 0.00
C18: SPOLJNO UREĐENJE | F18: RSD | G18: ='SPOLJNO UREĐENJE'!G41 -> 0.00
C21: UKUPNO | F21: RSD | G21: =SUM(G4:G18) -> 0.00
C22: IZNOS PDV-a | F22: RSD | G22: =0.2*G21 -> 0.00
C23: UKUPNO SA PDV-om | F23: RSD | G23: =G21+G22 -> 0.00
C26: Napomena: Cene date predmerom i predračunom su bez PDV-a.
